Cogmind - Beta 9.6 @@@ ROGUE MODE // 2020.06.27 @ 22:15:41 // Winter2019/RPGLIKE Player: Terminus Result: Destroyed by H-88 Terminator with KE Penetrator Performance ------------- Evolutions (9) 4500 Regions Visited (41) 8200 Robots Destroyed (280) 1400 Value Destroyed (19514) 19514 Prototype IDs (48) 960 Alien Tech Used (3) 600 Bonus (21436) 21436 TOTAL SCORE: 56610 Bonus ------- Triggered Max Security 1000 High Alert Combat Kills 2728 Follower Combat Kills 14470 Entered Garrisons 2000 Used RIF Installer 5000 Built Enhanced Grunts 300 Hacked Protovariant 500 Scanned by Researcher 500 Friendly Fire -5062 Cogmind --------- Core Integrity 0/1150 Matter 300/300 Energy 98/100 System Corruption 11% Temperature Cool (2) Movement Flying (25) Location -1/Access Parts ------- > --- POWER (1) -------- (None) > --- PROPULSION (2) --- Cesium-ion Thruster Experimental Cesium-ion Thruster > --- UTILITY (16) ----- Advanced Visual Processing Unit Experimental Sensor Array Experimental Signal Interpreter Relay Coupler [C] (118) Relay Coupler [C] (72) Relay Coupler [C] (57) Relay Coupler [C] (78) Relay Coupler [C] (76) Relay Coupler [C] (130) Relay Coupler [Sentry] (36) Relay Coupler [Sentry] (68) Relay Coupler [Hunter] (4) Relay Coupler [Hunter] (58) Relay Coupler [Hunter] (48) Relay Coupler [Hunter] (48) Relay Coupler [Hunter] (52) > --- WEAPON (2) ------- (None) > --- INVENTORY (8) ---- Protomatter-62 Combat Linear Gravjet Improved Armor Integrity Analyzer Subatomic Replicator Null Cannon Peak State ------------ > --- POWER ------------ Light Antimatter Reactor > --- PROPULSION ------- Improved Linear Gravjet Experimental Cesium-ion Thruster > --- UTILITY ---------- Advanced Visual Processing Unit Experimental Sensor Array Experimental Signal Interpreter Relay Coupler [C] Relay Coupler [C] Relay Coupler [C] Relay Coupler [C] Relay Coupler [C] Relay Coupler [C] Relay Coupler [C] Relay Coupler [C] Relay Coupler [Hunter] Relay Coupler [Hunter] Relay Coupler [Hunter] Relay Coupler [Hunter] Relay Coupler [Hunter] > --- WEAPON ----------- Null Cannon Advanced Remote Datajack > --- INVENTORY -------- Protomatter Protomatter Combat Linear Gravjet Improved Armor Integrity Analyzer Relay Coupler [Sentry] Relay Coupler [Sentry] Subatomic Replicator Gamma Rifle [Rating: 150] Favorites ----------- Power Fission Core Engine Light Angular Momentum Engine Power Core Fission Core Reactor Light Antimatter Reactor Propulsion Improved VTOL Module Leg Carbon-fiber Leg Hover Unit Combat Airjet Flight Unit Improved VTOL Module Utility Relay Coupler [Hunter] Device Experimental Sensor Array Storage YI-UF0's Bottomless Matter Pit Processor Experimental Signal Interpreter Hackware Relay Coupler [Hunter] Protection Medium Armor Plating Weapon Remote Datajack Energy Gun Gatling Laser Energy Cannon Null Cannon Ballistic Gun Assault Rifle Ballistic Cannon Advanced Assault Cannon Launcher Rocket Launcher Special Weapon Remote Datajack Slashing Weapon Great Axe Piercing Weapon Lance Special Melee Weapon Improved Datajack Build | -11 -10 -10 -10 -9 -8 -8 -8 -7 -7 -7 -7 -7 -7 -6 -6 -6 -6 -6 -6 -6 -6 -5 -5 -5 -5 -4 -4 -4 -4 -4 -4 -3 -3 -3 -2 -2 -2 -2 -1 -1 -1 ------- Run | Scr Mat Min Exi Min Mat Sto Gar Fac Was Fac Gar Fac Gar Fac Was Fac Ext Cet Arc Hub Gar Fac Was Fac Gar Fac Was Fac Gar Fac Gar Res Qua Gar Res Tes Sec Gar Acc Gar Acc Slots Evolved 17 | 4 1 1 . . 2 1 1 . . 1 . . . 1 . . . 1 . . . . . . . 1 . . . . . 1 . . 1 . . . . 1 . Power . | . . . . . . . . . . . . . . . . . . . . . . . . . . . . . . . . . . . . . . . . . . Propulsion 1 | 1 . . . . . . . . . . . . . . . . . . . . . . . . . . . . . . . . . . . . . . . . . Utility 15 | 2 1 1 . . 2 1 1 . . 1 . . . 1 . . . 1 . . . . . . . 1 . . . . . 1 . . 1 . . . . 1 . Weapon 1 | 1 . . . . . . . . . . . . . . . . . . . . . . . . . . . . . . . . . . . . . . . . . Parts Attached 256 | 6 8 6 . 9 12 12 24 10 2 13 14 2 19 7 1 5 3 5 2 . 3 7 2 6 2 1 . 1 10 3 6 2 9 2 2 8 4 10 2 3 13 Power 8 | 1 . . . 1 . . . . . 1 1 . 1 1 . . . . . . . . . . . . . . . . . . 1 . . . . 1 . . . Engine 5 | 1 . . . 1 . . . . . 1 1 . 1 . . . . . . . . . . . . . . . . . . . . . . . . . . . . Core 2 | . . . . . . . . . . . . . . 1 . . . . . . . . . . . . . . . . . . 1 . . . . . . . . Reactor 1 | . . . . . . . . . . . . . . . . . . . . . . . . . . . . . . . . . . . . . . 1 . . . Propulsion 18 | 2 . 2 . 1 4 . . . . . . . . . . . . . . . . 2 . 2 . . . . . . . . 2 . . . . 1 . . 2 Treads . | . . . . . . . . . . . . . . . . . . . . . . . . . . . . . . . . . . . . . . . . . . Leg 4 | 2 . 2 . . . . . . . . . . . . . . . . . . . . . . . . . . . . . . . . . . . . . . . Wheel . | . . . . . . . . . . . . . . . . . . . . . . . . . . . . . . . . . . . . . . . . . . Hover 4 | . . . . 1 2 . . . . . . . . . . . . . . . . . . . . . . . . . . . . . . . . . . . 1 Flight 10 | . . . . . 2 . . . . . . . . . . . . . . . . 2 . 2 . . . . . . . . 2 . . . . 1 . . 1 Utility 127 | . 6 4 . 3 4 3 5 6 . 5 9 1 9 6 1 5 3 5 2 . 3 4 2 2 2 1 . 1 2 1 4 2 2 2 2 2 3 5 2 3 5 Device 31 | . 3 2 . 2 3 2 . 3 . 1 1 . 1 2 1 . 1 1 1 . . . 1 . . . . . . . 1 . 1 . . 1 3 . . . . Storage 3 | . . 1 . . . . . . . . . . . . . . 1 1 . . . . . . . . . . . . . . . . . . . . . . . Processor 9 | . . 1 . . . . . . . . 1 . 2 1 . . . 1 . . . 1 . . . . . . . . . . . . . 1 . . . . 1 Hackware 70 | . 1 . . 1 1 . 5 3 . 4 7 . 3 1 . 4 . 1 1 . 3 3 . 2 2 1 . 1 1 1 3 2 1 2 2 . . 5 2 3 4 Protection 14 | . 2 . . . . 1 . . . . . 1 3 2 . 1 1 1 . . . . 1 . . . . . 1 . . . . . . . . . . . . Artifact . | . . . . . . . . . . . . . . . . . . . . . . . . . . . . . . . . . . . . . . . . . . Weapon 103 | 3 2 . . 4 4 9 19 4 2 7 4 1 9 . . . . . . . . 1 . 2 . . . . 8 2 2 . 4 . . 6 1 3 . . 6 Energy Gun 29 | 2 2 . . . 3 5 9 2 1 1 . . . . . . . . . . . . . . . . . . . . . . . . . . . 1 . . 3 Energy Cannon 5 | . . . . . . . . . . . . . . . . . . . . . . . . . . . . . . . . . . . . 1 . 2 . . 2 Ballistic Gun 7 | 1 . . . 2 . . . . . . . . 1 . . . . . . . . . . . . . . . 2 . 1 . . . . . . . . . . Ballistic Cannon 2 | . . . . . . . . . . . 1 . 1 . . . . . . . . . . . . . . . . . . . . . . . . . . . . Launcher 14 | . . . . 2 . 1 1 . . 1 1 . 3 . . . . . . . . . . 1 . . . . 3 1 . . . . . . . . . . . Special Weapon 14 | . . . . . . . . . . 1 1 . 4 . . . . . . . . . . . . . . . . . 1 . 3 . . 2 1 . . . 1 Impact Weapon . | . . . . . . . . . . . . . . . . . . . . . . . . . . . . . . . . . . . . . . . . . . Slashing Weapon 16 | . . . . . 1 3 6 1 1 3 1 . . . . . . . . . . . . . . . . . . . . . . . . . . . . . . Piercing Weapon 11 | . . . . . . . . . . . . 1 . . . . . . . . . 1 . 1 . . . . 3 1 . . 1 . . 3 . . . . . Special Melee Weapon 5 | . . . . . . . 3 1 . 1 . . . . . . . . . . . . . . . . . . . . . . . . . . . . . . . Unidentified Prototypes 14 | . . 1 . . 2 1 . . . . . . . . . . . 1 . . . . 1 1 . . . . . . . . . . . 3 3 1 . . . Parts Lost 20 | . . . . . . . . 1 . . 1 . . . . . . . . . . 1 . . . . . . 1 . . . . . 1 1 5 2 1 . 6 Power 3 | . . . . . . . . . . . 1 . . . . . . . . . . . . . . . . . . . . . . . . . 1 . . . 1 Propulsion 3 | . . . . . . . . . . . . . . . . . . . . . . . . . . . . . . . . . . . . . . 1 . . 2 Utility 11 | . . . . . . . . 1 . . . . . . . . . . . . . 1 . . . . . . 1 . . . . . 1 . 2 1 1 . 3 Weapon 3 | . . . . . . . . . . . . . . . . . . . . . . . . . . . . . . . . . . . . 1 2 . . . . Highest Loss Streak 5 | . . . . . . . . 1 . . 1 . . . . . . . . . . 1 . . . . . . 1 . . . . . 1 1 5 1 1 . 2 Average Slot Usage (%) 98 | . 93 100 100 100 99 98 97 99 100 99 98 95 99 100 100 99 98 94 98 100 100 98 100 100 100 100 100 100 100 100 100 100 99 100 98 99 98 92 100 100 94 Engine 3 | . 11 10 10 10 8 7 7 7 7 6 5 6 6 . . . . . . . . . . . . . . . . . . . . . . . . . . . . Core 2 | . . . . . . . . . . . . . . 5 6 6 6 5 5 5 5 5 5 5 5 5 5 5 5 5 5 5 5 5 5 5 4 . . . . Leg 3 | . 23 20 20 12 1 . . . . . . . . . . . . . . . . . . . . . . . . . . . . . . . . . . . . Flight 9 | . . . . . 6 15 14 14 14 13 13 13 13 12 12 12 12 11 11 11 11 11 11 11 11 11 11 11 11 11 11 10 10 10 10 10 10 8 10 9 5 Device 12 | . 14 27 20 16 17 15 14 18 21 20 17 13 15 12 12 17 12 11 12 11 11 11 11 11 11 11 11 11 11 11 10 5 5 5 5 5 4 5 5 4 4 Processor 10 | . . 2 10 10 8 7 7 7 7 6 9 13 13 12 12 12 12 13 17 17 17 19 17 17 17 16 16 16 16 16 16 15 15 15 15 15 14 5 5 4 7 Hackware 36 | . 3 10 10 13 19 24 34 37 35 38 38 34 33 39 37 36 36 31 32 35 35 31 35 35 35 37 38 38 38 38 41 51 52 52 51 55 55 60 65 66 61 Protection 4 | . 16 10 10 10 8 7 3 . . . . 1 3 . 5 . 6 5 5 5 5 5 5 5 5 5 5 5 5 5 2 . . . . . . . . . . Energy Gun 4 | . 11 10 10 10 17 15 12 12 12 3 . . . . . . . . . . . . . . . . . . . . . . . . . . . 3 5 4 2 Ballistic Gun 1 | . 11 10 10 8 . . . . . . . . . . . . . . . . . . . . . . . . . . . . . . . . . . . . . Special Weapon 3 | . . . . . . . . . . 2 4 6 5 6 6 6 6 5 5 5 5 5 5 5 5 5 5 5 5 5 4 5 4 5 5 5 4 5 5 4 2 Piercing Weapon 2 | . . . . . . . . . . . . 1 6 6 6 6 6 5 5 5 5 5 5 5 5 5 5 5 4 4 5 5 5 5 5 4 4 . . . . Naked Turns . | . . . . . . . . . . . . . . . . . . . . . . . . . . . . . . . . . . . . . . . . . . Heaviest Build 30 | 7 23 24 16 21 27 27 27 23 23 27 27 26 26 26 25 25 26 26 26 25 25 26 26 26 26 26 26 26 30 26 26 19 22 22 22 24 24 24 24 24 24 Greatest Support 43 | 20 20 30 30 30 43 27 27 27 27 27 27 27 27 27 27 27 27 27 27 27 27 33 33 33 29 29 29 29 29 29 29 29 29 29 29 29 29 29 29 29 29 Greatest Overweight (x) 1 | 1 1 1 . 1 1 . . . . . . . . . . . . . . . . . . . . . . . 1 . . . . . . . . . . . 1 Average Overweight (x) . | . . . . . . . . . . . . . . . . . . . . . . . . . . . . . . . . . . . . . . . . . . Largest Inventory Capacity 8 | 1 1 2 2 3 4 5 6 6 6 6 6 6 7 7 7 7 7 7 7 7 7 7 8 8 8 8 8 8 8 8 8 8 8 8 8 8 8 8 8 8 8 Average Capacity 6 | 1 1 1 2 2 3 4 5 6 6 6 6 6 6 7 7 7 7 7 7 7 7 7 7 8 8 8 8 8 8 8 8 8 8 8 8 8 8 8 8 8 8 Most Carried 8 | 1 1 2 2 3 4 5 6 6 6 6 6 6 7 7 7 7 7 7 7 7 7 7 8 8 8 8 8 8 8 8 8 8 8 8 8 8 8 8 8 8 8 Average Carried 5 | . . 1 2 2 3 4 5 6 6 5 5 5 6 6 7 6 6 6 7 7 7 6 7 7 8 7 8 7 8 7 7 7 6 7 7 7 7 7 7 7 6 Final Capacity 8 | 1 1 2 2 3 4 5 6 6 6 6 6 6 7 7 7 7 7 7 7 7 7 7 8 8 8 8 8 8 8 8 8 8 8 8 8 8 8 8 8 8 8 Final Carried 8 | 1 1 2 2 3 4 5 6 6 6 6 6 6 7 7 7 6 7 7 7 7 7 7 8 8 8 8 8 8 8 7 7 8 7 8 7 7 8 8 8 8 5 Class Distribution -------------------- 33% | Hacker-Sprinter 31% | Botlord-Sprinter 12% | Scavenger-Mutant 6% | Commander-Sprinter 5% | Bothacker-Sprinter 5% | Mutant Dominant Class ---------------- Mutant | -10/Materials Scavenger-Mutant | -10/Mines Scavenger-Mutant | -10/Exiles Scavenger-Mutant | -9/Mines Scavenger-Mutant | -8/Materials Hacker-Sprinter | -8/Storage Hacker-Sprinter | -8/Garrison Hacker-Sprinter | -7/Factory Hacker-Sprinter | -7/Waste Hacker-Sprinter | -7/Factory Hacker-Sprinter | -7/Garrison Hacker-Sprinter | -7/Factory Hacker-Sprinter | -7/Garrison Hacker-Sprinter | -6/Factory Hacker-Sprinter | -6/Waste Hacker-Sprinter | -6/Factory Hacker-Sprinter | -6/Extension Commander-Sprinter | -6/Cetus Wizard-Sprinter | -6/Archives Wizard-Sprinter | -6/Hub_04(d) Hacker-Sprinter | -6/Garrison Commander-Sprinter | -5/Factory Bothacker-Sprinter | -5/Waste Bothacker-Sprinter | -5/Factory Bothacker-Sprinter | -5/Garrison Botlord-Sprinter | -4/Factory Botlord-Sprinter | -4/Waste Botlord-Sprinter | -4/Factory Botlord-Sprinter | -4/Garrison Botlord-Sprinter | -4/Factory Botlord-Sprinter | -4/Garrison Botlord-Sprinter | -3/Research Botlord-Sprinter | -3/Quarantine Botlord-Sprinter | -3/Garrison Botlord-Sprinter | -2/Research Botlord-Sprinter | -2/Testing Botlord-Sprinter | -2/Section 7 Botlord-Sprinter | -2/Garrison Botlord-Sprinter | -1/Access Botlord-Sprinter | -1/Garrison Botlord-Scout | -1/Access Resources | -11 -10 -10 -10 -9 -8 -8 -8 -7 -7 -7 -7 -7 -7 -6 -6 -6 -6 -6 -6 -6 -6 -5 -5 -5 -5 -4 -4 -4 -4 -4 -4 -3 -3 -3 -2 -2 -2 -2 -1 -1 -1 ----------- Run | Scr Mat Min Exi Min Mat Sto Gar Fac Was Fac Gar Fac Gar Fac Was Fac Ext Cet Arc Hub Gar Fac Was Fac Gar Fac Was Fac Gar Fac Gar Res Qua Gar Res Tes Sec Gar Acc Gar Acc Matter Collected 8406 | 238 384 86 100 1189 637 140 200 140 . 282 633 165 388 165 20 200 205 60 20 . 20 73 127 45 124 55 . 104 407 138 240 90 150 36 65 260 115 276 294 140 395 Remotely . | . . . . . . . . . . . . . . . . . . . . . . . . . . . . . . . . . . . . . . . . . . Salvage Created 12181 | . 799 76 . 74 1618 382 870 253 . 244 457 35 422 173 758 188 113 . 139 . . . . 54 607 119 397 71 847 193 243 325 321 334 500 317 93 33 601 50 475 Parts 636 | . 54 9 . 8 77 42 29 14 . 19 25 3 39 12 11 16 6 4 15 . . . . 3 38 6 . 10 39 10 13 19 39 7 13 18 4 . 16 1 17 Haulers Intercepted 11 | . 2 . . . 6 . . 1 . . . . . . . . . . . . . . . . . . . . . . . . . . . . . . 2 . . Recyclers Shooed 3 | . 2 1 . . . . . . . . . . . . . . . . . . . . . . . . . . . . . . . . . . . . . . . Parts Field Recycled . | . . . . . . . . . . . . . . . . . . . . . . . . . . . . . . . . . . . . . . . . . . Retrieved Matter . | . . . . . . . . . . . . . . . . . . . . . . . . . . . . . . . . . . . . . . . . . . Parts Self-Destructed . | . . . . . . . . . . . . . . . . . . . . . . . . . . . . . . . . . . . . . . . . . . Prevented . | . . . . . . . . . . . . . . . . . . . . . . . . . . . . . . . . . . . . . . . . . . Kills | -11 -10 -10 -10 -9 -8 -8 -8 -7 -7 -7 -7 -7 -7 -6 -6 -6 -6 -6 -6 -6 -6 -5 -5 -5 -5 -4 -4 -4 -4 -4 -4 -3 -3 -3 -2 -2 -2 -2 -1 -1 -1 ------- Run | Scr Mat Min Exi Min Mat Sto Gar Fac Was Fac Gar Fac Gar Fac Was Fac Ext Cet Arc Hub Gar Fac Was Fac Gar Fac Was Fac Gar Fac Gar Res Qua Gar Res Tes Sec Gar Acc Gar Acc Combat Hostiles Destroyed 205 | . 14 . . 13 28 13 17 4 . 3 14 1 12 2 3 3 1 . . . . . . . 13 1 1 2 22 7 3 5 9 . 4 2 2 . 3 . 3 Melee 71 | . . . . . . 1 . 1 . 1 6 1 4 2 3 3 1 . . . . . . . 13 1 1 2 6 1 2 5 9 . 4 2 2 . . . . Guns 79 | . 13 . . 3 28 12 16 3 . . . . . . . . . . . . . . . . . . . . . . 1 . . . . . . . 1 . 2 Cannons 6 | . . . . . . . . . . . 5 . 1 . . . . . . . . . . . . . . . . . . . . . . . . . . . . AOE 46 | . 1 . . 10 . . . . . 2 3 . 7 . . . . . . . . . . . . . . . 16 6 . . . . . . . . 1 . . Classes Destroyed 20 | . 7 1 . 3 3 . 1 1 . . 1 . . . 1 . . . . . . . . . 1 . . . . . . . . . . 1 . . . . . Worker 15 | . 3 2 . . 5 1 . 1 . 2 . . . . . . . . . . . . . . . . . . . . . . . . . . . . 1 . . Builder 6 | . . . . . 2 1 . . . 2 . . . . . . . . . . . . . . . . . . . . . . . . . 1 . . . . . Tunneler 1 | . . 1 . . . . . . . . . . . . . . . . . . . . . . . . . . . . . . . . . . . . . . . Hauler 11 | . 2 . . . 6 . . 1 . . . . . . . . . . . . . . . . . . . . . . . . . . . . . . 2 . . Recycler 4 | . 2 . . . 2 . . . . . . . . . . . . . . . . . . . . . . . . . . . . . . . . . . . . Operator 7 | . 1 . . . 1 . . . . . . . . . . . . . 4 . . . . 1 . . . . . . . . . . . . . . . . . Watcher 26 | . 3 . . . 1 2 . 1 . 4 . 1 . 1 . . 1 . . . . . . 1 . 1 . . . . 1 . 2 . . 1 . 1 2 1 2 Swarmer 32 | . 3 . . . 4 . 1 3 . . 6 . . . . . . . . . . . . . . . . . 9 4 . . . . . . 2 . . . . Grunt 90 | . 11 . . 5 16 6 6 . . 2 3 . 9 . . . 1 . . . . . . . 7 . . . 10 . 3 2 4 . 1 . . . 3 . 1 Brawler 4 | . . . . . 1 . 2 . . . . . 1 . . . . . . . . . . . . . . . . . . . . . . . . . . . . Duelist 3 | . . . . 1 1 . 1 . . . . . . . . . . . . . . . . . . . . . . . . . . . . . . . . . . Researcher 1 | . . . . . . . . . . . . . . . . . . . . . . . . . . . . . . . . . . . . 1 . . . . . Sentry 33 | . . . . . 6 7 5 . . . 4 . . 1 . . . . . . . . . . 3 . . . 2 1 . 2 1 . . . . . 1 . . Demolisher 1 | . . . . 1 . . . . . . . . . . . . . . . . . . . . . . . . . . . . . . . . . . . . . Specialist 1 | . . . . . . . . . . . 1 . . . . . . . . . . . . . . . . . . . . . . . . . . . . . . Hunter 15 | . . . . . . . 2 . . . . 1 2 . . . . . . . . . . . . . . . . 2 . . 2 . 3 . . . . . 3 Programmer 16 | . . . . . . . . 1 . 1 . . . 1 . 3 . . . . . . . . 2 1 . 2 . . . 1 2 . . 2 . . . . . Behemoth 2 | . . . . . . . . . . . . . . . . . . . . . . . . . 1 . . . 1 . . . . . . . . . . . . Compactor 4 | . . . . . . . . . . . . . . . 3 . . . . . . . . . . . 1 . . . . . . . . . . . . . . Assembled 6 | . . . . 6 . . . . . . . . . . . . . . . . . . . . . . . . . . . . . . . . . . . . . Best Kill Streak 12 | . 4 1 . 9 7 4 6 3 . 4 4 1 6 1 2 1 1 . 4 . . . . 1 6 1 1 2 12 6 1 2 3 . 3 2 2 1 2 1 3 Combat Bots Only 12 | . 4 . . 9 6 3 6 3 . 2 4 1 6 1 2 1 1 . . . . . . . 6 1 1 2 12 6 1 2 2 . 3 2 2 . 1 . 3 Max Kills in Single Turn 3 | . 2 1 . 2 2 2 1 1 . 2 3 1 1 1 1 1 1 1 1 . . . . 1 1 1 1 1 3 3 1 1 1 . 1 1 1 1 2 1 1 Gunslinging 1 | . 1 . . . . 1 . . . . . . . . . . . . . . . . . . . . . . . . . . . . . . . . . . . Exploded 3 | . 1 . . 2 . . . . . 1 3 . 1 . . . . . . . . . . . . . . . 3 3 . . . . . . . . 1 . . Melee 1 | . . . . . . 1 . 1 . 1 1 1 1 1 1 1 1 . . . . . . . 1 1 1 1 1 1 1 1 1 . 1 1 1 . . . . Uniques/NPCs Destroyed 2 | . . 1 . . . . . . . . . . . . . . . 1 . . . . . . . . . . . . . . . . . . . . . . . YI-UF0 (-10/Mines) A7 (-6/Cetus) Combat | -11 -10 -10 -10 -9 -8 -8 -8 -7 -7 -7 -7 -7 -7 -6 -6 -6 -6 -6 -6 -6 -6 -5 -5 -5 -5 -4 -4 -4 -4 -4 -4 -3 -3 -3 -2 -2 -2 -2 -1 -1 -1 -------- Run | Scr Mat Min Exi Min Mat Sto Gar Fac Was Fac Gar Fac Gar Fac Was Fac Ext Cet Arc Hub Gar Fac Was Fac Gar Fac Was Fac Gar Fac Gar Res Qua Gar Res Tes Sec Gar Acc Gar Acc Damage Taken 20202 | . 676 24 . 459 1038 336 913 232 . 75 1023 62 528 434 . 301 199 31 . . 227 125 . 89 1417 116 25 410 2344 166 618 316 534 958 963 883 545 317 602 54 3162 Core 15431 | . 446 15 . 348 664 198 711 186 . 72 832 52 372 328 . 250 154 12 . . 138 92 . 83 897 80 25 299 1514 115 460 260 445 792 819 769 470 282 526 49 2676 Absorbed by Shields 1057 | . . . . . . . 85 . . . 39 . 37 . . . . . . . . . . . 11 . . . 280 . 168 . 247 33 . . . . . . 157 Redirected to Core 10580 | . 361 15 . 245 552 183 472 156 . 11 588 35 289 242 . 180 107 12 . . 83 73 . 22 702 64 . 119 1168 115 291 200 316 583 528 404 273 124 280 20 1767 Core Remaining (%) 90 | 100 . . . 100 . . 21 . . . . . 100 . . . . . . . 100 . . . 100 . . . . . 92 . . 100 . . . 100 . . . Volleys Fired 875 | . 94 22 . 28 88 30 46 12 . 8 45 10 23 17 5 24 33 2 . . 7 13 . 5 15 11 3 6 24 9 28 19 7 . 10 23 13 34 70 32 59 Largest 2 | . 2 2 . 2 2 2 2 2 . 1 1 1 1 1 1 1 1 1 . . 1 1 . 1 1 1 1 1 1 1 1 1 1 . 1 1 1 1 1 1 1 Hottest 160 | . 70 70 . 70 160 160 160 160 . 80 50 30 48 30 30 30 30 30 . . 30 30 . 30 30 30 30 30 80 80 40 30 30 . 30 50 30 130 75 75 130 Shots Fired 1169 | . 188 43 . 41 176 60 82 24 . 9 45 10 24 17 5 24 33 2 . . 7 13 . 5 15 11 3 6 24 9 28 19 7 . 10 23 13 33 70 32 58 Gun 713 | . 188 43 . 27 176 60 82 24 . 6 . . . . . . . . . . . . . . . . . . 4 . 4 . . . . . . 4 47 21 27 Cannon 35 | . . . . . . . . . . . 25 . 1 . . . . . . . . . . . . . . . . . . . . . . . . 6 . . 3 Launcher 45 | . . . . 14 . . . . . 2 1 . 13 . . . . . . . . . . . . . . . 13 2 . . . . . . . . . . . Special 376 | . . . . . . . . . . 1 19 10 10 17 5 24 33 2 . . 7 13 . 5 15 11 3 6 7 7 24 19 7 . 10 23 13 23 23 11 28 Kinetic 164 | . 94 22 . 14 . . . . . . 25 . 1 . . . . . . . . . . . . . . . 4 . 4 . . . . . . . . . . Thermal 485 | . 94 21 . 13 176 60 82 24 . 6 . . . . . . . . . . . . . . . . . . . . . . . . . . . 6 . . 3 Explosive 32 | . . . . 14 . . . . . 2 1 . . . . . . . . . . . . . . . . . 13 2 . . . . . . . . . . . Electromagnetic 112 | . . . . . . . . . . . . . 13 . . . . . . . . . . . . . . . . . . . . . . . . 4 47 21 27 Robot Hit Streak 19 | . 9 8 . 11 13 16 19 8 . 2 9 11 13 4 6 9 7 . . . 4 10 . 2 5 6 7 3 9 7 12 10 5 . 9 12 7 11 13 8 16 Robot Miss Streak 10 | . 4 1 . 2 10 5 4 4 . 5 2 1 2 3 . 3 2 2 . . 2 1 . 2 2 1 1 1 1 . 1 1 1 . 1 2 4 1 3 2 3 Penetration Max . | . . . . . . . . . . . . . . . . . . . . . . . . . . . . . . . . . . . . . . . . . . Secondary Targets 5 | . 1 . . . 2 1 1 . . . . . . . . . . . . . . . . . . . . . . . . . . . . . . . . . . Max Gunslinging Chain 1 | . 1 . . . 1 1 1 . . . . . . . . . . . . . . . . . . . . . . . . . . . . . . . . . . Shots Hit Robots 1147 | . 112 31 . 24 158 53 80 26 . 16 46 14 21 19 20 19 33 15 4 . 9 12 . 5 51 12 11 13 36 9 31 32 32 13 17 28 14 23 50 18 40 Core Hits 518 | . 41 10 . 27 100 40 43 11 . 18 24 2 18 5 6 3 4 4 4 . 2 1 . 2 20 2 2 3 47 12 5 8 13 5 5 5 3 1 16 2 4 Critical Hits 33 | . . . . . . . . . . 1 . 1 2 . 1 . 2 2 . . . . . 1 6 1 . 1 2 . 3 1 2 1 . . 1 4 . . 1 Critical Kills 14 | . . . . . . . . . . 1 . . 2 . 1 . . . . . . . . 1 3 . . . . . 2 1 1 1 . . 1 . . . . Critical Parts Destroyed 17 | . . . . . . . . . . . . 1 . . . . 2 1 . . . . . . 3 1 . 1 2 . 1 . 1 . . . . 3 . . 1 Melee Attacks 575 | . . . . . 4 4 20 8 10 34 43 5 47 14 15 23 12 16 4 . 9 9 . 4 60 6 9 13 40 2 15 18 41 30 10 38 12 . . . . Impact . | . . . . . . . . . . . . . . . . . . . . . . . . . . . . . . . . . . . . . . . . . . Slashing 112 | . . . . . 4 4 7 7 10 33 43 4 . . . . . . . . . . . . . . . . . . . . . . . . . . . . . Piercing 448 | . . . . . . . . . . . . 1 47 14 15 23 12 16 4 . 9 9 . 4 60 6 9 13 40 2 15 18 41 30 10 38 12 . . . . Sneak Attacks 69 | . . . . . . . 1 2 . 2 . . . 1 15 . 1 15 4 . . 1 . . 2 . 9 . . . 1 3 3 1 5 1 2 . . . . Combat Hostiles 42 | . . . . . . . . 1 . . . . . . 15 . . . . . . 1 . . 2 . 9 . . . . 3 3 1 5 . 2 . . . . Follow-up Attacks . | . . . . . . . . . . . . . . . . . . . . . . . . . . . . . . . . . . . . . . . . . . Damage Inflicted 31191 | . 1509 379 . 943 2842 939 1280 486 . 976 1261 216 730 374 711 158 350 980 411 . 122 138 . 139 1741 173 608 309 3383 808 334 908 1516 1246 1006 720 599 508 1507 226 655 Guns 9375 | . 1414 379 . 184 2763 895 1280 280 . 53 . . . . . . . . . . . . . . . . . . 25 . 33 . . . . . . 50 1138 226 655 Cannons 1049 | . . . . . . . . . . . 565 . 26 . . . . . . . . . . . . . . . . . . . . . . . . 458 . . . Explosions 5476 | . 95 . . 759 . . . . . 304 146 . 489 . . . . . . . . . . . . . . . 2588 726 . . . . . . . . 369 . . Melee 15291 | . . . . . 79 44 . 206 . 619 550 216 215 374 711 158 350 980 411 . 122 138 . 139 1741 173 608 309 770 82 301 908 1516 1246 1006 720 599 . . . . Ramming . | . . . . . . . . . . . . . . . . . . . . . . . . . . . . . . . . . . . . . . . . . . Kinetic 1651 | . 777 141 . 84 . . . . . . 565 . 26 . . . . . . . . . . . . . . . 25 . 33 . . . . . . . . . . Thermal 6982 | . 637 238 . 100 2763 895 1280 280 . 53 . . 34 . . . . . . . . . . . . . . . . . . . . . . . . 458 244 . . Explosive 4523 | . . . . 759 . . . . . 304 146 . . . . . . . . . . . . . . . . . 2588 726 . . . . . . . . . . . Electromagnetic 2744 | . 95 . . . . . . . . . . . 455 . . . . . . . . . . . . . . . . . . . . . . . . 50 1263 226 655 Impact . | . . . . . . . . . . . . . . . . . . . . . . . . . . . . . . . . . . . . . . . . . . Slashing 1671 | . . . . . 79 44 . 206 . 619 550 173 . . . . . . . . . . . . . . . . . . . . . . . . . . . . . Piercing 13620 | . . . . . . . . . . . . 43 215 374 711 158 350 980 411 . 122 138 . 139 1741 173 608 309 770 82 301 908 1516 1246 1006 720 599 . . . . Highest Corruption 15 | . 2 2 2 2 . . . 1 11 15 15 15 15 1 6 6 . 1 1 1 1 . . . 4 1 1 5 5 5 5 . 3 3 . 2 2 2 . . 11 Average Corruption 5 | . 1 2 2 2 . . . 1 9 12 15 15 9 1 5 2 . 1 1 1 1 . . . 3 1 1 1 5 5 5 . 1 3 . 1 2 2 . . 4 Corruption Purged 12 | . . . . . . . . . . . . . 6 . . 6 . . . . . . . . . . . . . . . . . . . . . . . . . Effects 333 | . 5 10 7 7 . . . . 8 57 53 31 45 . 3 10 . 3 . . 2 . . . 9 . 1 5 21 5 16 . . 10 . 4 3 6 . . 12 Message Errors 72 | . . 3 2 3 . . . . . 5 6 9 12 . 1 2 . 2 . . 2 . . . 1 . . 1 5 2 5 . . 3 . 1 1 3 . . 3 Matter Fused 44 | . . . . . . . . . 1 7 10 4 5 . 1 2 . . . . . . . . 2 . . 2 3 . 5 . . 2 . . . . . . . Heat Flow Errors 39 | . 1 2 2 2 . . . . . 8 4 4 5 . . 2 . . . . . . . . 1 . . . . 1 1 . . 4 . . . 1 . . 1 Energy Discharges 34 | . 1 3 2 . . . . . . 3 5 2 2 . . 2 . 1 . . . . . . . . 1 2 2 1 2 . . . . 2 1 1 . . 1 Parts Rejected 2 | . . . . . . . . . . 1 . . . . . . . . . . . . . . . . . . 1 . . . . . . . . . . . . Data Loss (minor) 37 | . 3 1 1 2 . . . . 2 11 2 1 5 . . 1 . . . . . . . . 2 . . . 1 1 . . . 1 . 1 . . . . 2 Data Loss (major) 15 | . . . . . . . . . 1 3 5 . 2 . . 1 . . . . . . . . . . . . 1 . 2 . . . . . . . . . . Misfires 3 | . . . . . . . . . . 1 1 . 1 . . . . . . . . . . . . . . . . . . . . . . . . . . . . Alerts 6 | . . . . . . . . . . 2 3 . 1 . . . . . . . . . . . . . . . . . . . . . . . . . . . . Misdirections 34 | . . . . . . . . . 3 7 10 8 4 . . . . . . . . . . . . . . . . . . . . . . . . . . . 2 Targeting Errors 44 | . . 1 . . . . . . 1 9 6 3 8 . 1 . . . . . . . . . 3 . . . 8 . 1 . . . . . 1 . . . 2 Weapon Failures 3 | . . . . . . . . . . . 1 . . . . . . . . . . . . . . . . . . . . . . . . . . 1 . . 1 Overload Shots . | . . . . . . . . . . . . . . . . . . . . . . . . . . . . . . . . . . . . . . . . . . Overflow Damage 1530 | . . . . . 33 . . 81 . 149 24 . . . . . . 92 . . . 36 . . 20 . 4 19 235 87 . 55 119 240 168 3 135 . 30 . . Projectiles 7 | . . . . . . . . . . . 7 . . . . . . . . . . . . . . . . . . . . . . . . . . . . . . Explosions 328 | . . . . . . . . . . . . . . . . . . . . . . . . . . . . . 211 87 . . . . . . . . 30 . . Melee 1195 | . . . . . 33 . . 81 . 149 17 . . . . . . 92 . . . 36 . . 20 . 4 19 24 . . 55 119 240 168 3 135 . . . . Knockbacks 2 | . . . . . . . . . . . 2 . . . . . . . . . . . . . . . . . . . . . . . . . . . . . . Impact . | . . . . . . . . . . . . . . . . . . . . . . . . . . . . . . . . . . . . . . . . . . Kinetic 2 | . . . . . . . . . . . 2 . . . . . . . . . . . . . . . . . . . . . . . . . . . . . . Secondary . | . . . . . . . . . . . . . . . . . . . . . . . . . . . . . . . . . . . . . . . . . . Self-Inflicted Damage 301 | . 62 . . 105 . . . . . . 44 . 18 . . . . . . . . . . . . . . . 72 . . . . . . . . . . . . Shots 11 | . 2 . . 3 . . . . . . 2 . 2 . . . . . . . . . . . . . . . 2 . . . . . . . . . . . . Rammed . | . . . . . . . . . . . . . . . . . . . . . . . . . . . . . . . . . . . . . . . . . . Targets Rammed . | . . . . . . . . . . . . . . . . . . . . . . . . . . . . . . . . . . . . . . . . . . Kicked . | . . . . . . . . . . . . . . . . . . . . . . . . . . . . . . . . . . . . . . . . . . Crushed . | . . . . . . . . . . . . . . . . . . . . . . . . . . . . . . . . . . . . . . . . . . Highest Temperature 305 | . 246 128 226 246 187 1 5 . . 215 125 241 238 . . 226 . . . . . . . . 93 . . . 7 147 52 12 12 234 19 305 12 234 174 212 165 Average Temperature 61 | . 78 80 112 117 50 1 5 . . 111 58 118 107 . . 109 . . . . . . . . 66 . . . 4 120 52 6 8 84 9 66 7 67 48 66 59 Received Heat Transfer 3231 | . 297 . . 77 459 144 171 . . 9 290 9 174 78 . 51 51 . . . 75 27 . . 213 . . 9 324 30 85 42 22 180 18 36 54 36 72 . 198 Siege Activations . | . . . . . . . . . . . . . . . . . . . . . . . . . . . . . . . . . . . . . . . . . . Robots Corrupted 6 | . . . . . . . . . . . . . . . . . . . . . . . . . . . . . . . . . . . . . . . 4 . 2 Combat Hostiles 2 | . . . . . . . . . . . . . . . . . . . . . . . . . . . . . . . . . . . . . . . 1 . 1 Parts Fried 18 | . . . . . . . . . . . . . . . . . . . . . . . . . . . . . . . . . . . . . . 1 10 . 7 Impact Corruptions . | . . . . . . . . . . . . . . . . . . . . . . . . . . . . . . . . . . . . . . . . . . Robots Melted 2 | . . . . . 1 . 1 . . . . . . . . . . . . . . . . . . . . . . . . . . . . . . . . . . Combat Hostiles 1 | . . . . . . . 1 . . . . . . . . . . . . . . . . . . . . . . . . . . . . . . . . . . Parts Melted 35 | . . . . . 18 5 9 . . . . . . . . . 1 . . . . . . . . . . . . . . 1 . . . . . . . . 1 Heat Transferred 15038 | . 1887 703 . 296 6250 2025 2727 625 . 125 . . 50 . . . . . . . . . . . . . . . . . . . . . . . . 250 100 . . Parts Sabotaged . | . . . . . . . . . . . . . . . . . . . . . . . . . . . . . . . . . . . . . . . . . . Parts Stolen . | . . . . . . . . . . . . . . . . . . . . . . . . . . . . . . . . . . . . . . . . . . Parts Stripped . | . . . . . . . . . . . . . . . . . . . . . . . . . . . . . . . . . . . . . . . . . . Power Chain Reactions 2 | . . . . . . . . . . . . . 1 . . . . . . . . . . . . . . . . . . . . . . . . . 1 . . Missiles Intercepted . | . . . . . . . . . . . . . . . . . . . . . . . . . . . . . . . . . . . . . . . . . . Alert | -11 -10 -10 -10 -9 -8 -8 -8 -7 -7 -7 -7 -7 -7 -6 -6 -6 -6 -6 -6 -6 -6 -5 -5 -5 -5 -4 -4 -4 -4 -4 -4 -3 -3 -3 -2 -2 -2 -2 -1 -1 -1 ------- Run | Scr Mat Min Exi Min Mat Sto Gar Fac Was Fac Gar Fac Gar Fac Was Fac Ext Cet Arc Hub Gar Fac Was Fac Gar Fac Was Fac Gar Fac Gar Res Qua Gar Res Tes Sec Gar Acc Gar Acc Peak Influence 1666 | . 364 41 . 148 539 293 839 607 200 636 993 602 831 1105 576 509 295 609 364 127 1328 1079 482 1422 1072 796 683 894 1274 1274 1494 1256 912 1253 962 698 461 863 651 318 1666 Average Influence 495 | . 195 15 . 43 313 137 477 521 184 250 723 515 468 615 463 272 195 446 315 127 855 630 445 654 895 666 576 696 930 1055 1292 1023 422 916 839 392 265 652 431 164 1410 Maximum Alert Level 5 | . 1 . . . 2 1 3 2 1 2 3 2 3 4 2 2 1 2 1 . 4 3 2 4 3 3 2 3 4 4 4 4 3 4 3 2 2 3 2 1 5 Low Security (%) 24 | 100 48 100 . 100 26 84 18 . 83 39 . . . . . 50 53 6 12 100 13 . . . . . . . . . . . 6 2 . 22 19 . . 73 . Level 1 22 | . 51 . . . 43 15 22 1 16 46 . 10 43 . 23 . 46 24 87 . 11 32 21 49 . . 11 . . . . . 30 12 . 38 73 20 46 26 . Level 2 28 | . . . . . 30 . 41 98 . 13 48 89 43 80 76 49 . 69 . . 8 18 78 3 . 58 88 35 32 21 . . 59 4 . 39 7 20 53 . . Level 3 16 | . . . . . . . 17 . . . 51 . 12 17 . . . . . . 28 49 . 36 100 41 . 64 21 5 29 65 3 43 100 . . 58 . . . Level 4 6 | . . . . . . . . . . . . . . 2 . . . . . . 38 . . 11 . . . . 45 73 70 34 . 37 . . . . . . . Level 5 . | . . . . . . . . . . . . . . . . . . . . . . . . . . . . . . . . . . . . . . . . . . High Security . | . . . . . . . . . . . . . . . . . . . . . . . . . . . . . . . . . . . . . . . . . . Max Security 2 | . . . . . . . . . . . . . . . . . . . . . . . . . . . . . . . . . . . . . . . . . 99 Squads Dispatched 130 | . 6 . . 1 5 . . 2 . 12 . 1 . 6 . 6 2 1 . . . 12 . 6 . 3 . 4 . 3 . 5 5 . 4 11 4 . 6 . 25 Investigation 45 | . 3 . . . 3 . . 2 . 5 . 1 . 4 . 3 1 1 . . . 5 . 3 . 2 . 1 . 2 . 2 1 . 1 3 . . 2 . . Extermination 13 | . . . . . . . . . . 2 . . . 1 . 2 . . . . . 1 . 1 . . . 1 . . . . 2 . . 1 1 . 1 . . Reinforcement 30 | . 3 . . . 2 . . . . 1 . . . 1 . . 1 . . . . 4 . 2 . . . . . . . 1 2 . 3 6 2 . 1 . 1 Assault 30 | . . . . 1 . . . . . . . . . . . 1 . . . . . 2 . . . 1 . . . . . 2 . . . 1 . . 1 . 21 Garrison 12 | . . . . . . . . . . 4 . . . . . . . . . . . . . . . . . 2 . 1 . . . . . . 1 . 1 . 3 Intercept . | . . . . . . . . . . . . . . . . . . . . . . . . . . . . . . . . . . . . . . . . . . Construction Impeded 6 | . . . . . 1 . . . . . . . . 1 . . . . . . . 2 . . . . . . . . . . . . 1 . . . . . 1 Haulers Reinforced 3 | . . . . . . . . . . 1 . . . . . . . . . . . . . . . . . . . . . 1 . . 1 . . . . . . Alert ID Control Effect 93 | . . . . . . . . . . . . . . . . . . . . . . . . . . . . . . . . . . . . . . . 34 16 43 Stealth | -11 -10 -10 -10 -9 -8 -8 -8 -7 -7 -7 -7 -7 -7 -6 -6 -6 -6 -6 -6 -6 -6 -5 -5 -5 -5 -4 -4 -4 -4 -4 -4 -3 -3 -3 -2 -2 -2 -2 -1 -1 -1 --------- Run | Scr Mat Min Exi Min Mat Sto Gar Fac Was Fac Gar Fac Gar Fac Was Fac Ext Cet Arc Hub Gar Fac Was Fac Gar Fac Was Fac Gar Fac Gar Res Qua Gar Res Tes Sec Gar Acc Gar Acc Distress Signals 46 | . 2 . . . . 2 . . . 1 . . . . . . 1 2 . . . 2 . 1 . . . 1 . 1 . 5 2 . 8 5 1 . 4 . 8 Communications Jammed . | . . . . . . . . . . . . . . . . . . . . . . . . . . . . . . . . . . . . . . . . . . Distress Signals . | . . . . . . . . . . . . . . . . . . . . . . . . . . . . . . . . . . . . . . . . . . Times Spotted 1005 | . 31 . . 21 43 16 32 10 6 17 31 13 24 13 4 29 22 8 2 . 12 16 5 10 31 10 7 22 37 9 28 39 36 25 33 38 20 24 65 19 197 Peak Tracking Total 41 | . 4 . . 7 6 3 7 4 6 4 6 4 5 5 3 8 3 5 1 . 5 8 2 5 10 7 5 4 15 5 7 7 7 11 10 11 5 6 12 5 41 Tactical Retreats 47 | . 2 . . 1 2 1 1 . 1 . 4 . 1 1 . 4 . . . . . 1 . . 2 2 1 . 3 1 . . . . . 4 1 . . . 14 Traps | -11 -10 -10 -10 -9 -8 -8 -8 -7 -7 -7 -7 -7 -7 -6 -6 -6 -6 -6 -6 -6 -6 -5 -5 -5 -5 -4 -4 -4 -4 -4 -4 -3 -3 -3 -2 -2 -2 -2 -1 -1 -1 ------- Run | Scr Mat Min Exi Min Mat Sto Gar Fac Was Fac Gar Fac Gar Fac Was Fac Ext Cet Arc Hub Gar Fac Was Fac Gar Fac Was Fac Gar Fac Gar Res Qua Gar Res Tes Sec Gar Acc Gar Acc Traps Triggered 79 | . 1 1 . . . 1 5 1 . . 6 . 8 1 . . . . . . 4 1 . . 5 1 . . 12 . 10 1 1 3 . 3 4 5 1 4 . Indirectly 2 | . . . . . . . . . . . . . 2 . . . . . . . . . . . . . . . . . . . . . . . . . . . . Trap Hack Attempts . | . . . . . . . . . . . . . . . . . . . . . . . . . . . . . . . . . . . . . . . . . . Triggered . | . . . . . . . . . . . . . . . . . . . . . . . . . . . . . . . . . . . . . . . . . . Disarmed . | . . . . . . . . . . . . . . . . . . . . . . . . . . . . . . . . . . . . . . . . . . Reprogrammed . | . . . . . . . . . . . . . . . . . . . . . . . . . . . . . . . . . . . . . . . . . . Reused . | . . . . . . . . . . . . . . . . . . . . . . . . . . . . . . . . . . . . . . . . . . Traps Extracted . | . . . . . . . . . . . . . . . . . . . . . . . . . . . . . . . . . . . . . . . . . . Installed . | . . . . . . . . . . . . . . . . . . . . . . . . . . . . . . . . . . . . . . . . . . Triggered 3 | . . . . . . . . . . . . . . . . . 3 . . . . . . . . . . . . . . . . . . . . . . . . Machines | -11 -10 -10 -10 -9 -8 -8 -8 -7 -7 -7 -7 -7 -7 -6 -6 -6 -6 -6 -6 -6 -6 -5 -5 -5 -5 -4 -4 -4 -4 -4 -4 -3 -3 -3 -2 -2 -2 -2 -1 -1 -1 ---------- Run | Scr Mat Min Exi Min Mat Sto Gar Fac Was Fac Gar Fac Gar Fac Was Fac Ext Cet Arc Hub Gar Fac Was Fac Gar Fac Was Fac Gar Fac Gar Res Qua Gar Res Tes Sec Gar Acc Gar Acc Machines Disabled 92 | . 3 . . . . 1 5 . . 1 4 . 4 1 . . 1 . . . 4 10 . . 4 1 . 4 4 14 4 . 3 4 . 6 4 3 1 4 2 Max in Single Turn 10 | . 1 . . . . 1 1 . . 1 1 . 1 . . . 1 . . . 1 1 . . 1 1 . . 1 10 1 . 1 1 . 1 1 1 1 1 1 Garrison Access 10 | . . . . . 1 . . 1 . . . . . . . 1 . . . . . 2 . . . 1 . . . . . 1 . . . . . . 2 . 1 Garrison Relay 38 | . . . . . . . 5 . . . 4 . 3 . . . . . . . 4 . . . 4 . . . 3 . 4 . . 4 . . . 3 . 4 . Machines Sabotaged . | . . . . . . . . . . . . . . . . . . . . . . . . . . . . . . . . . . . . . . . . . . Garrisons Compromised . | . . . . . . . . . . . . . . . . . . . . . . . . . . . . . . . . . . . . . . . . . . Overloaded Fab Kills . | . . . . . . . . . . . . . . . . . . . . . . . . . . . . . . . . . . . . . . . . . . Fab Network Shutdowns 3 | . . . . . . . . . . 1 . . . 1 . . . . . . . . . 1 . . . . . . . . . . . . . . . . . Hacking | -11 -10 -10 -10 -9 -8 -8 -8 -7 -7 -7 -7 -7 -7 -6 -6 -6 -6 -6 -6 -6 -6 -5 -5 -5 -5 -4 -4 -4 -4 -4 -4 -3 -3 -3 -2 -2 -2 -2 -1 -1 -1 --------- Run | Scr Mat Min Exi Min Mat Sto Gar Fac Was Fac Gar Fac Gar Fac Was Fac Ext Cet Arc Hub Gar Fac Was Fac Gar Fac Was Fac Gar Fac Gar Res Qua Gar Res Tes Sec Gar Acc Gar Acc Machines Accessed 171 | . 5 1 4 . 14 15 . 4 . 13 . 9 . 13 . 9 14 1 . 2 . 11 . 5 . 4 . 4 . 3 . 3 12 . 1 10 3 . 11 . . Terminals 120 | . 3 . . . 11 14 . 3 . 8 . 7 . 9 . 6 14 1 . 1 . 7 . 2 . 3 . 2 . 2 . 2 8 . 1 8 2 . 6 . . Fabricators 12 | . . . . . . . . . . 3 . 1 . 3 . 1 . . . . . 2 . 1 . . . . . . . . . . . . . . 1 . . Repair Stations 1 | . . . . . . . . . . . . . . . . . . . . . . . . 1 . . . . . . . . . . . . . . . . . Recycling Units 3 | . 2 . . . 1 . . . . . . . . . . . . . . . . . . . . . . . . . . . . . . . . . . . . Scanalyzers 6 | . . . . . 1 . . . . . . . . . . . . . . . . . . . . . . . . . . . 3 . . 2 . . . . . Garrison Access 24 | . . . . . 1 1 . 1 . 2 . 1 . 1 . 2 . . . 1 . 2 . 1 . 1 . 2 . 1 . 1 1 . . . 1 . 4 . . Total Hacks 528 | . 11 1 4 . 59 49 . 8 . 48 . 24 . 44 . 35 38 3 . 3 . 37 . 18 . 10 . 11 . 8 . 10 39 . 4 37 4 . 23 . . Successful 377 | . 10 1 4 . 43 45 . 4 . 42 . 17 . 33 . 23 36 1 . 3 . 25 . 14 . 5 . 6 . 5 . 5 20 . 1 19 2 . 13 . . Failed 147 | . 1 . . . 15 4 . 4 . 5 . 7 . 10 . 12 1 2 . . . 12 . 4 . 5 . 5 . 3 . 5 19 . 3 18 2 . 10 . . Catastrophic 22 | . . . . . 1 . . 2 . . . 3 . 2 . 1 . . . . . 2 . . . . . 1 . 1 . 1 2 . 1 3 . . 2 . . Database Lockouts 6 | . . . . . 1 . . . . 2 . . . 1 . . 2 . . . . . . . . . . . . . . . . . . . . . . . . Manual 343 | . 10 . . . 50 37 . 6 . 32 . 12 . 25 . 27 26 2 . 2 . 24 . 10 . 8 . 6 . 2 . 5 18 . 3 22 2 . 14 . . Terminals 406 | . 9 . . . 50 48 . 7 . 34 . 20 . 28 . 26 38 3 . 2 . 25 . 10 . 7 . 7 . 6 . 8 29 . 4 28 3 . 14 . . Fabricators 39 | . . . . . . . . . . 8 . 2 . 14 . 3 . . . . . 8 . 3 . . . . . . . . . . . . . . 1 . . Repair Stations 2 | . . . . . . . . . . . . . . . . . . . . . . . . 2 . . . . . . . . . . . . . . . . . Recycling Units 3 | . 2 . . . 1 . . . . . . . . . . . . . . . . . . . . . . . . . . . . . . . . . . . . Scanalyzers 24 | . . . . . 6 . . . . . . . . . . . . . . . . . . . . . . . . . . . 9 . . 9 . . . . . Garrison Access 49 | . . . . . 2 1 . 1 . 6 . 2 . 2 . 6 . . . 1 . 4 . 3 . 3 . 4 . 2 . 2 1 . . . 1 . 8 . . Terminal Hacks 191 | . 4 1 4 . 20 29 . 1 . 19 . 10 . 13 . 13 26 1 . 1 . 11 . 6 . 2 . 2 . 2 . 4 11 . . 9 1 . 1 . . Record 6 | . . . 4 . . . . . . . . . . . . . 2 . . . . . . . . . . . . . . . . . . . . . . . . Part Schematic 26 | . . . . . 1 2 . . . 6 . 3 . 5 . 2 5 . . . . 1 . . . . . . . . . . 1 . . . . . . . . Robot Schematic 3 | . . . . . . . . . . 1 . . . . . . 1 . . . . 1 . . . . . . . . . . . . . . . . . . . Robot Analysis 1 | . . . . . . . . . . . . . . . . . 1 . . . . . . . . . . . . . . . . . . . . . . . . Prototype ID Bank 4 | . . . . . . . . . . . . 2 . . . . 1 . . . . . . . . . . . . . . . . . . 1 . . . . . Open Door 11 | . . 1 . . . 4 . . . . . . . 1 . . 4 . . . . . . . . . . . . . . . . . . . . . 1 . . Level Access Points 2 | . . . . . . 1 . . . . . . . . . . . . . . . . . . . . . . . . . . 1 . . . . . . . . Branch Access Points 8 | . 1 . . . . 1 . . . . . . . 2 . 1 . . . . . 1 . 1 . . . . . . . 1 . . . . . . . . . Emergency Access Points 1 | . . . . . . . . 1 . . . . . . . . . . . . . . . . . . . . . . . . . . . . . . . . . Machine Index 3 | . . . . . . . . . . . . 1 . . . . . . . . . . . . . . . . . . . . 1 . . . 1 . . . . Terminal Index 11 | . 1 . . . 1 1 . . . 1 . . . 1 . 1 1 . . . . 1 . 1 . 1 . . . . . . . . . 1 . . . . . Fabricator Index 6 | . . . . . . . . . . 1 . . . . . 1 . . . . . 1 . . . 1 . 1 . 1 . . . . . . . . . . . Scanalyzer Index 1 | . . . . . . . . . . . . . . . . 1 . . . . . . . . . . . . . . . . . . . . . . . . . Garrison Index 6 | . . . . . . 1 . . . 1 . . . 1 . . . . . . . 1 . 1 . . . . . . . . . . . 1 . . . . . Alert Level 33 | . 1 . . . 8 7 . . . 4 . 1 . 3 . 2 4 1 . . . 1 . . . . . . . . . . 1 . . . . . . . . Unreport Threat 32 | . 1 . . . 4 4 . . . 1 . 1 . . . 3 2 . . . . 3 . 3 . . . 1 . . . 2 5 . . 2 . . . . . Recall Investigation 3 | . . . . . 1 . . . . 1 . . . . . . 1 . . . . . . . . . . . . . . . . . . . . . . . . Recall Extermination 3 | . . . . . . . . . . . . . . . . . . . . . . 1 . . . . . . . . . 1 . . . 1 . . . . . Recall Assault 1 | . . . . . . . . . . . . . . . . 1 . . . . . . . . . . . . . . . . . . . . . . . . . Hauler Manifests 5 | . . . . . 1 1 . . . 1 . 1 . . . . . . . . . . . . . . . . . . . . 1 . . . . . . . . Zone Layout 23 | . . . . . 4 7 . . . 2 . 1 . . . 1 4 . . 1 . . . . . . . . . 1 . . 1 . . 1 . . . . . Protovariant Controls 2 | . . . . . . . . . . . . . . . . . . . . . . . . . . . . . . . . . . . . 2 . . . . . Fabricator Hacks 31 | . . . . . . . . . . 8 . 2 . 8 . 2 . . . . . 7 . 3 . . . . . . . . . . . . . . 1 . . Load Schematic 12 | . . . . . . . . . . 3 . 1 . 4 . 1 . . . . . 2 . 1 . . . . . . . . . . . . . . . . . Build 19 | . . . . . . . . . . 5 . 1 . 4 . 1 . . . . . 5 . 2 . . . . . . . . . . . . . . 1 . . Repair Station Hacks 1 | . . . . . . . . . . . . . . . . . . . . . . . . 1 . . . . . . . . . . . . . . . . . Scan Component 1 | . . . . . . . . . . . . . . . . . . . . . . . . 1 . . . . . . . . . . . . . . . . . Recycling Unit Hacks . | . . . . . . . . . . . . . . . . . . . . . . . . . . . . . . . . . . . . . . . . . . Scanalyzer 16 | . . . . . 6 . . . . . . . . . . . . . . . . . . . . . . . . . . . 3 . . 7 . . . . . Insert Component 10 | . . . . . 3 . . . . . . . . . . . . . . . . . . . . . . . . . . . 3 . . 4 . . . . . Analyze 6 | . . . . . 3 . . . . . . . . . . . . . . . . . . . . . . . . . . . . . . 3 . . . . . Garrison Access Hacks 33 | . . . . . 2 1 . 1 . 2 . 1 . 1 . 3 . . . 1 . 3 . 2 . 1 . 3 . 2 . 1 1 . . . 1 . 7 . . Unlock Access 13 | . . . . . . 1 . . . 1 . 1 . . . 1 . . . 1 . . . 1 . . . 2 . 1 . . 1 . . . 1 . 2 . . Seal Access 7 | . . . . . 1 . . 1 . . . . . . . 1 . . . . . 1 . . . . . . . . . 1 . . . . . . 2 . . Coupler Status 13 | . . . . . 1 . . . . 1 . . . 1 . 1 . . . . . 2 . 1 . 1 . 1 . 1 . . . . . . . . 3 . . Unauthorized Hacks 105 | . 6 . . . 15 15 . 2 . 13 . 4 . 11 . 5 10 . . 1 . 4 . 2 . 2 . 1 . 1 . . 5 . 1 3 . . 4 . . Terminals 86 | . 4 . . . 14 15 . 2 . 9 . 3 . 5 . 4 10 . . 1 . 2 . 1 . 2 . . . 1 . . 5 . 1 3 . . 4 . . Track 9 | . . . . . 3 5 . . . . . . . . . . 1 . . . . . . . . . . . . . . . . . . . . . . . . Assimilate 16 | . 2 . . . 1 1 . 1 . 3 . 1 . 2 . 2 . . . . . . . 1 . . . . . . . . . . 1 . . . 1 . . Botnet 56 | . 2 . . . 9 8 . 1 . 5 . 2 . 3 . 2 7 . . 1 . 2 . . . 2 . . . 1 . . 5 . . 3 . . 3 . . Disrupt 1 | . . . . . . . . . . . . . . . . . 1 . . . . . . . . . . . . . . . . . . . . . . . . Operators 4 | . . . . . 1 1 . . . 1 . . . . . . 1 . . . . . . . . . . . . . . . . . . . . . . . . Fabricators 6 | . . . . . . . . . . . . . . 5 . . . . . . . 1 . . . . . . . . . . . . . . . . . . . Report 1 | . . . . . . . . . . . . . . 1 . . . . . . . . . . . . . . . . . . . . . . . . . . . Prioritize 3 | . . . . . . . . . . . . . . 2 . . . . . . . 1 . . . . . . . . . . . . . . . . . . . Siphon 2 | . . . . . . . . . . . . . . 2 . . . . . . . . . . . . . . . . . . . . . . . . . . . Repair Stations . | . . . . . . . . . . . . . . . . . . . . . . . . . . . . . . . . . . . . . . . . . . Recycling Units 3 | . 2 . . . 1 . . . . . . . . . . . . . . . . . . . . . . . . . . . . . . . . . . . . Tunnel 3 | . 2 . . . 1 . . . . . . . . . . . . . . . . . . . . . . . . . . . . . . . . . . . . Scanalyzers . | . . . . . . . . . . . . . . . . . . . . . . . . . . . . . . . . . . . . . . . . . . Garrison Access 10 | . . . . . . . . . . 4 . 1 . 1 . 1 . . . . . 1 . 1 . . . 1 . . . . . . . . . . . . . Reprogram 7 | . . . . . . . . . . 4 . 1 . 1 . . . . . . . . . . . . . 1 . . . . . . . . . . . . . Eject 3 | . . . . . . . . . . . . . . . . 1 . . . . . 1 . 1 . . . . . . . . . . . . . . . . . Data Cores Recovered 1 | . . . . . . . . 1 . . . . . . . . . . . . . . . . . . . . . . . . . . . . . . . . . Used 1 | . . . . . . . . 1 . . . . . . . . . . . . . . . . . . . . . . . . . . . . . . . . . Hacking Detections 137 | . 2 . . . 12 9 . 3 . 13 . 9 . 12 . 9 11 1 . . . 9 . 4 . 4 . 3 . 2 . 3 9 . 1 10 2 . 9 . . Full Trace Events 31 | . . . . . 1 . . 2 . 4 . 1 . 3 . 2 . 1 . . . 4 . 2 . 2 . 1 . 2 . 1 1 . 1 2 . . 1 . . Feedback Events 6 | . . . . . . . . 1 . 2 . . . . . . . 1 . . . 1 . . . 1 . . . . . . . . . . . . . . . Corruption 4 | . . . . . . . . . . 2 . . . . . . . 1 . . . . . . . 1 . . . . . . . . . . . . . . . Hackware Fried 2 | . . . . . . . . 1 . . . . . . . . . . . . . 1 . . . . . . . . . . . . . . . . . . . Feedback Blocked . | . . . . . . . . . . . . . . . . . . . . . . . . . . . . . . . . . . . . . . . . . . Robot Schematics Acquired 3 | . . . . . . . . . . 1 . . . . . . 1 . . . . 1 . . . . . . . . . . . . . . . . . . . Robots Built 1 | . . . . . . . . . . . . . . . . . . . . . . . . . . . . . . . . . . . . . . . 1 . . Matter 384 | . . . . . . . . . . . . . . . . . . . . . . . . . . . . . . . . . . . . . . . 384 . . Time 68 | . . . . . . . . . . . . . . . . . . . . . . . . . . . . . . . . . . . . . . . 68 . . Total Robot Build Rating 8 | . . . . . . . . . . . . . . . . . . . . . . . . . . . . . . . . . . . . . . . 8 . . Part Schematics Acquired 30 | . . . . . 4 2 . . . 6 . 3 . 5 . 2 5 . . . . 1 . . . . . . . . . . 1 . . 1 . . . . . Parts Built 16 | . . . . . . . . . . 4 . 2 . 5 . 1 . . . . . 2 . 2 . . . . . . . . . . . . . . . . . Matter 3336 | . . . . . . . . . . 760 . 212 . 902 . 190 . . . . . 636 . 636 . . . . . . . . . . . . . . . . . Time 1393 | . . . . . . . . . . 332 . 53 . 370 . 47 . . . . . 253 . 338 . . . . . . . . . . . . . . . . . Total Part Build Rating 86 | . . . . . . . . . . 20 . 12 . 25 . 5 . . . . . 12 . 12 . . . . . . . . . . . . . . . . . Parts Repaired . | . . . . . . . . . . . . . . . . . . . . . . . . . . . . . . . . . . . . . . . . . . Time . | . . . . . . . . . . . . . . . . . . . . . . . . . . . . . . . . . . . . . . . . . . Parts Recycled . | . . . . . . . . . . . . . . . . . . . . . . . . . . . . . . . . . . . . . . . . . . Recycled Matter . | . . . . . . . . . . . . . . . . . . . . . . . . . . . . . . . . . . . . . . . . . . Retrieved Matter . | . . . . . . . . . . . . . . . . . . . . . . . . . . . . . . . . . . . . . . . . . . Retrieved Components . | . . . . . . . . . . . . . . . . . . . . . . . . . . . . . . . . . . . . . . . . . . Parts Scanalyzed 5 | . . . . . 3 . . . . . . . . . . . . . . . . . . . . . . . . . . . 1 . . 1 . . . . . Part Schematics Acquired 4 | . . . . . 3 . . . . . . . . . . . . . . . . . . . . . . . . . . . . . . 1 . . . . . Parts Damaged 1 | . . . . . . . . . . . . . . . . . . . . . . . . . . . . . . . . . . . . 1 . . . . . Bothacking | -11 -10 -10 -10 -9 -8 -8 -8 -7 -7 -7 -7 -7 -7 -6 -6 -6 -6 -6 -6 -6 -6 -5 -5 -5 -5 -4 -4 -4 -4 -4 -4 -3 -3 -3 -2 -2 -2 -2 -1 -1 -1 ------------ Run | Scr Mat Min Exi Min Mat Sto Gar Fac Was Fac Gar Fac Gar Fac Was Fac Ext Cet Arc Hub Gar Fac Was Fac Gar Fac Was Fac Gar Fac Gar Res Qua Gar Res Tes Sec Gar Acc Gar Acc Used RIF Installer 10 | . . . . . . . 1 . . . 1 . 1 . . . . . . . 1 . . . 1 . . . 1 . 1 . . 1 . . . 1 . 1 . Coupler Efficiency 2 | . . . . . . . . . . . 1 . 1 . . . . . . . . . . . . . . . . . . . . . . . . . . . . Patrol Navigation 1 | . . . . . . . . . . . . . . . . . . . . . . . . . 1 . . . . . . . . . . . . . . . . Alert ID Control 1 | . . . . . . . . . . . . . . . . . . . . . . . . . . . . . . . . . . . . . . 1 . . . Program Shield 1 | . . . . . . . . . . . . . . . . . . . . . . . . . . . . . 1 . . . . . . . . . . . . Autooverride 2 | . . . . . . . . . . . . . . . . . . . . . . . . . . . . . . . 1 . . . . . . . . 1 . Autoassimilate 1 | . . . . . . . . . . . . . . . . . . . . . 1 . . . . . . . . . . . . . . . . . . . . Crosswire 1 | . . . . . . . . . . . . . . . . . . . . . . . . . . . . . . . . . . 1 . . . . . . . Robots Hacked 425 | . . . . . . . 6 1 . 2 11 6 6 11 4 12 10 1 . . 2 7 . 2 13 3 3 4 4 5 14 23 19 19 24 18 15 24 48 24 84 Non-combat 48 | . . . . . . . . 1 . 2 . 3 . 8 . 2 2 . . . . 5 . 2 1 1 . 2 . . . 6 1 . . 1 . . 8 . 3 Combat 377 | . . . . . . . 6 . . . 11 3 6 3 4 10 8 1 . . 2 2 . . 12 2 3 2 4 5 14 17 18 19 24 17 15 24 40 24 81 Autooverrided 100 | . . . . . . . . . . . . . . . . . . . . . . . . . . . . . . . 1 5 8 4 8 3 6 6 10 10 39 Autoassimilated 183 | . . . . . . . . . . . . . . . . . . . . . 1 1 . . 5 1 . 1 1 3 6 12 10 15 14 10 7 15 30 12 39 Robot Hacks Applied 158 | . . . . . . . 6 1 . 2 11 8 6 13 5 14 11 1 . . 2 7 . 2 9 2 3 3 3 2 7 7 1 . 2 6 3 4 8 2 7 parse_system 16 | . . . . . . . . . . . . . . . . 1 3 1 . . 1 . . . 2 . . 1 . . 1 . . . . 2 2 1 . . 1 no_distress 3 | . . . . . . . . . . . . 1 . . . . . . . . . . . . . . . . . . . . . . . . . . 2 . . find_chute 3 | . . . . . . . . 1 . . . . . 1 . . . . . . . . . . . 1 . . . . . . . . . . . . . . . hold_bot 1 | . . . . . . . . . . . . . . . . 1 . . . . . . . . . . . . . . . . . . . . . . . . . ignore_repairs 1 | . . . . . . . . . . . . . . . . 1 . . . . . . . . . . . . . . . . . . . . . . . . . map_walls 1 | . . . . . . . . . . . . . . . . . . . . . . . . . . . . . . . . . . . . . . . 1 . . find_fabricator 1 | . . . . . . . . . . . . . . 1 . . . . . . . . . . . . . . . . . . . . . . . . . . . drop_inventory 10 | . . . . . . . . . . . . . . 4 . . . . . . . 2 . . . . . . . . . 1 . . . . . . 3 . . reprogram_traps 1 | . . . . . . . . . . . . . . . . . 1 . . . . . . . . . . . . . . . . . . . . . . . . map_route 16 | . . . . . . . . . . 1 . 2 . 2 . . . . . . . 1 . 1 . . . . . . . 4 1 . . . . . 1 . 3 find_scanalyzer 1 | . . . . . . . . . . . . . . . . . . . . . . . . . . . . . . . . . . . . 1 . . . . . ignore_targets 8 | . . . . . . . . . . . . . . . 5 . . . . . . . . . . . 3 . . . . . . . . . . . . . . find_shortcuts 1 | . . . . . . . . . . . 1 . . . . . . . . . . . . . . . . . . . . . . . . . . . . . . scatter_targeting 1 | . . . . . . . . . . . . 1 . . . . . . . . . . . . . . . . . . . . . . . . . . . . . spike_heat 2 | . . . . . . . . . . . 1 . . . . . 1 . . . . . . . . . . . . . . . . . . . . . . . . overload_power 9 | . . . . . . . . . . 1 . 2 . 1 . 1 1 . . . . 2 . . . . . . . . . 1 . . . . . . . . . amplify_resonance 4 | . . . . . . . . . . . 1 . . 2 . . . . . . . . . . . 1 . . . . . . . . . . . . . . . go_dormant 2 | . . . . . . . . . . . . 1 . . . . 1 . . . . . . . . . . . . . . . . . . . . . . . . formatsys_low 2 | . . . . . . . . . . . . . . . . . . . . . . 1 . 1 . . . . . . . . . . . . . . . . . formatsys_high 75 | . . . . . . . 6 . . . 8 1 6 2 . 10 4 . . . 1 1 . . 7 . . 2 3 2 6 1 . . 2 3 1 3 1 2 3 Relay Couplers Released 73 | . . . . . . . 7 . . . 7 . 5 . . 2 . . . . 7 2 . 2 6 2 . . 5 . 6 . . 6 . . . 6 2 8 . Ejected 6 | . . . . . . . . . . . . . . . . 2 . . . . . 2 . 2 . . . . . . . . . . . . . . . . . Machine Destruction 65 | . . . . . . . 7 . . . 7 . 5 . . . . . . . 7 . . . 6 2 . . 5 . 6 . . 6 . . . 6 . 8 . Programmers 2 | . . . . . . . . . . . . . . . . . . . . . . . . . . . . . . . . . . . . . . . 2 . . Attached 54 | . . . . . . . 5 . . . 6 . 3 1 . 2 . . . . 3 3 . 1 2 1 . 1 1 1 3 2 1 2 2 . . 5 2 3 4 Crosswired 13 | . . . . . . . . . . . . . . . . . . . . . . . . . . . . . . . . . . 7 . . . 3 1 2 . Robots Rewired 35 | . . . . . . . . 1 . . . . . . . . 14 . . . 2 . . . . 3 . . . . 6 . . . . 3 . 6 . . . Allies Hacked 4 | . . . . . . . . . . 1 . . . . . . . . . . . . . . . . . 3 . . . . . . . . . . . . . Hacks Repelled . | . . . . . . . . . . . . . . . . . . . . . . . . . . . . . . . . . . . . . . . . . . Allies | -11 -10 -10 -10 -9 -8 -8 -8 -7 -7 -7 -7 -7 -7 -6 -6 -6 -6 -6 -6 -6 -6 -5 -5 -5 -5 -4 -4 -4 -4 -4 -4 -3 -3 -3 -2 -2 -2 -2 -1 -1 -1 -------- Run | Scr Mat Min Exi Min Mat Sto Gar Fac Was Fac Gar Fac Gar Fac Was Fac Ext Cet Arc Hub Gar Fac Was Fac Gar Fac Was Fac Gar Fac Gar Res Qua Gar Res Tes Sec Gar Acc Gar Acc Total Allies 478 | . 1 3 . 1 1 11 6 1 . 7 8 2 6 7 . 12 23 5 . . 2 3 20 2 12 4 19 4 4 5 19 18 18 19 25 19 14 30 43 24 80 Largest Group 35 | . 1 4 4 4 2 10 7 4 . 7 4 5 6 6 . 5 19 18 13 11 10 10 20 18 10 3 19 18 1 4 10 10 10 11 20 7 8 20 35 25 16 Highest-Rated Group 1633 | . 10 50 50 50 41 173 112 60 . 196 64 90 205 250 . 89 670 980 713 662 634 645 745 696 345 153 688 668 58 206 442 454 470 470 982 495 499 1094 1633 1416 990 Highest-Rated Ally 156 | . 10 16 16 31 31 29 16 16 . 38 29 26 81 81 . 41 156 156 94 94 94 94 50 50 49 56 56 56 58 56 58 60 60 58 69 79 69 69 69 69 69 Total Orders 7 | . . . . . . . . . . . . . . . . . . 5 . . . 1 . . . . . . . . . . . . . 1 . . . . . STAY 1 | . . . . . . . . . . . . . . . . . . 1 . . . . . . . . . . . . . . . . . . . . . . . GOTO 1 | . . . . . . . . . . . . . . . . . . 1 . . . . . . . . . . . . . . . . . . . . . . . FOLLOW 3 | . . . . . . . . . . . . . . . . . . 3 . . . . . . . . . . . . . . . . . . . . . . . EXPLORE 2 | . . . . . . . . . . . . . . . . . . . . . . 1 . . . . . . . . . . . . . 1 . . . . . Ally Attacks 2875 | . . . . 19 32 53 71 30 . 14 29 28 34 81 . 55 98 100 21 . 89 73 100 62 58 9 66 118 5 21 69 146 122 133 169 62 64 120 242 136 346 Total Damage 83939 | . . . . 287 419 709 811 375 . 673 372 388 625 2398 . 802 2099 2716 625 . 3102 3101 3794 1825 1334 138 3249 3318 169 823 2046 4520 3342 4058 3721 2673 1897 3647 7695 4743 11445 Kills 446 | . . . . 5 5 6 7 5 . 8 3 3 5 18 . 7 16 18 6 . 26 22 9 19 5 1 5 13 1 4 15 24 15 22 24 7 7 15 37 15 48 Allies Corrupted 23 | . . . . . . . . . . . . . . . . 1 1 . . . . . . . . . . 2 . 1 . 3 2 . . 5 . . 1 2 5 Allies Melted 1 | . . . . . . . . . . . . . . . . . . . . . . . . . . . . . 1 . . . . . . . . . . . . Intel | -11 -10 -10 -10 -9 -8 -8 -8 -7 -7 -7 -7 -7 -7 -6 -6 -6 -6 -6 -6 -6 -6 -5 -5 -5 -5 -4 -4 -4 -4 -4 -4 -3 -3 -3 -2 -2 -2 -2 -1 -1 -1 ------- Run | Scr Mat Min Exi Min Mat Sto Gar Fac Was Fac Gar Fac Gar Fac Was Fac Ext Cet Arc Hub Gar Fac Was Fac Gar Fac Was Fac Gar Fac Gar Res Qua Gar Res Tes Sec Gar Acc Gar Acc Robot Analysis Total 1 | . . . . . . . . . . . . . . . . . 1 . . . . . . . . . . . . . . . . . . . . . . . . Derelict Logs Recovered 2 | . . 1 . 1 . . . . . . . . . . . . . . . . . . . . . . . . . . . . . . . . . . . . . Drone Launches 3 | . . . . . . . . . . . . . . . . . . . . . . . . . . . . . . . . . . . . 3 . . . . . Drone Recoveries . | . . . . . . . . . . . . . . . . . . . . . . . . . . . . . . . . . . . . . . . . . . Exploration | -11 -10 -10 -10 -9 -8 -8 -8 -7 -7 -7 -7 -7 -7 -6 -6 -6 -6 -6 -6 -6 -6 -5 -5 -5 -5 -4 -4 -4 -4 -4 -4 -3 -3 -3 -2 -2 -2 -2 -1 -1 -1 ------------- Run | Scr Mat Min Exi Min Mat Sto Gar Fac Was Fac Gar Fac Gar Fac Was Fac Ext Cet Arc Hub Gar Fac Was Fac Gar Fac Was Fac Gar Fac Gar Res Qua Gar Res Tes Sec Gar Acc Gar Acc Turns Passed 22557 | 57 1031 1022 579 984 1049 516 645 462 106 1043 770 445 1025 860 108 758 693 425 86 24 441 665 128 609 626 146 189 368 542 158 522 431 852 610 165 609 298 515 1090 421 484 Spaces Moved 27128 | 41 511 773 478 882 1048 542 748 802 154 995 793 567 1035 995 105 991 662 343 59 28 534 925 230 538 768 319 354 542 637 229 704 530 1614 886 242 1262 561 691 1608 598 804 Core 10 | 10 . . . . . . . . . . . . . . . . . . . . . . . . . . . . . . . . . . . . . . . . . Treads . | . . . . . . . . . . . . . . . . . . . . . . . . . . . . . . . . . . . . . . . . . . Legs 1970 | 31 511 773 478 177 . . . . . . . . . . . . . . . . . . . . . . . . . . . . . . . . . . . . . Wheels . | . . . . . . . . . . . . . . . . . . . . . . . . . . . . . . . . . . . . . . . . . . Hover 1411 | . . . . 705 659 . . . . . . . . . . . . . . . . . . . . . . . . . . . . . . . . . . . 47 Flight 23737 | . . . . . 389 542 748 802 154 995 793 567 1035 995 105 991 662 343 59 28 534 925 230 538 768 319 354 542 637 229 704 530 1614 886 242 1262 561 691 1608 598 757 Fastest Speed 22 | 50 120 120 120 90 32 32 32 32 32 32 32 32 32 32 32 32 32 32 32 32 32 32 32 22 22 22 22 22 22 22 22 22 22 22 22 22 22 22 29 29 25 Average Speed 37 | 107 132 120 120 96 57 32 32 32 32 32 32 32 32 32 32 32 32 32 32 32 32 32 32 25 22 22 22 22 22 22 22 22 22 22 22 22 22 27 29 29 26 Slowest Speed 150 | 120 150 150 120 150 110 32 32 32 32 32 32 32 32 32 32 32 32 32 32 32 32 32 32 32 22 22 22 22 112 22 22 22 22 22 22 22 22 29 29 29 115 Overloaded Moves . | . . . . . . . . . . . . . . . . . . . . . . . . . . . . . . . . . . . . . . . . . . Propulsion Burnouts . | . . . . . . . . . . . . . . . . . . . . . . . . . . . . . . . . . . . . . . . . . . Robots Hopped 112 | . . . . . 2 4 . 2 . 5 2 . 2 9 . 8 6 . . . 2 15 . . 1 1 . 11 1 . . 3 2 1 . 1 1 . 22 . 11 Cave-ins Triggered 1 | . . . . . . . . . . . . . . . . . . . . . . . . . . . . . . . . . . . . . . . . . 1 Exploration Rate (%) 56 | 2 65 88 79 89 85 83 83 22 86 23 87 17 77 29 84 23 87 60 69 3 75 27 88 13 84 10 91 13 91 5 77 17 93 89 9 92 24 77 37 85 24 Regions Visited 41 Branch Regions 11 Pre-discovered Areas 5 | . 2 2 . . 1 . . . . . . . . . . . . . . . . . . . . . . . . . . . . . . . . . . . . Known Exits Taken 22 | . 1 1 1 1 1 1 . . . 1 . 1 . . . 1 1 1 1 1 . . . 1 . . . 1 . 1 . 1 1 . 1 1 1 . 1 . . Unknown Exits Taken 1 | 1 . . . . . . . . . . . . . . . . . . . . . . . . . . . . . . . . . . . . . . . . . Scrap Searched 2 | . . 1 . 1 . . . . . . . . . . . . . . . . . . . . . . . . . . . . . . . . . . . . . Spaces Dug 199 | . . . . 7 1 2 . 3 10 16 59 . 20 3 . 16 2 . . . . 6 . 2 2 2 . 2 8 . . 2 6 7 1 19 2 . . . 1 Terrain Destroyed 443 | . . . . 43 1 2 . 3 10 54 59 . 20 3 . 16 2 . . . . 6 . 2 2 2 . 2 127 44 . 2 6 7 1 19 2 . 6 . 2 Melee 152 | . . . . . 1 2 . 3 10 16 22 . 18 3 . 16 2 . . . . 6 . 2 2 2 . 2 8 . . 2 6 7 1 19 2 . . . . Projectile 2 | . . . . . . . . . . . . . . . . . . . . . . . . . . . . . . . . . . . . . . . . . 2 AOE 289 | . . . . 43 . . . . . 38 37 . 2 . . . . . . . . . . . . . . . 119 44 . . . . . . . . 6 . . Actions | -11 -10 -10 -10 -9 -8 -8 -8 -7 -7 -7 -7 -7 -7 -6 -6 -6 -6 -6 -6 -6 -6 -5 -5 -5 -5 -4 -4 -4 -4 -4 -4 -3 -3 -3 -2 -2 -2 -2 -1 -1 -1 --------- Run | Scr Mat Min Exi Min Mat Sto Gar Fac Was Fac Gar Fac Gar Fac Was Fac Ext Cet Arc Hub Gar Fac Was Fac Gar Fac Was Fac Gar Fac Gar Res Qua Gar Res Tes Sec Gar Acc Gar Acc Total 37451 | 51 678 823 483 975 1279 799 1026 963 191 1640 1191 817 1630 1497 153 1376 1102 634 118 42 784 1260 283 1003 1125 379 449 756 946 326 1031 804 2040 1239 327 1513 701 1001 2162 825 1029 Wait 6728 | 4 32 10 6 28 67 181 130 107 26 584 172 217 338 457 16 335 362 249 53 15 145 309 45 435 127 32 80 184 44 65 128 210 336 215 49 125 49 128 478 98 57 Move 26871 | 40 510 772 477 881 1043 535 746 798 153 984 788 566 1030 978 104 975 649 342 58 27 529 897 229 537 764 317 353 522 633 228 702 523 1610 882 241 1259 558 689 1564 596 782 Hop 98 | . . . . . 2 2 . 2 . 5 1 . 1 8 . 7 6 . . . 1 13 . . 1 1 . 8 1 . . 3 1 1 . 1 1 . 21 . 11 Pick Up 81 | 1 3 2 . 1 4 2 2 1 . 2 2 3 4 2 . 2 1 4 . . 1 1 1 4 2 1 1 1 1 . 3 3 4 4 1 6 1 1 2 5 2 Fast Attach 114 | 5 6 2 . 3 8 5 5 4 . 3 7 2 6 1 . . . 3 2 . 3 3 2 6 1 . . . 3 . 2 . 6 1 . 7 7 7 1 . 3 Attach 33 | . 1 1 . . 1 . . . . . 2 . 1 1 . 3 1 1 . . . 1 . . . 1 . 1 . 1 1 1 1 . 2 1 . 2 1 3 5 Detach 6 | . . . . . 1 . . . . . . . . . . . 1 . . . . . . . . . . . . . . . . . . . . 2 . . 2 Swap 112 | 1 1 3 . 6 3 7 19 6 2 10 5 . 12 5 1 2 2 1 . . . 3 . . 1 . . . 7 2 3 1 2 1 . . . 1 . . 5 Drop 149 | . 5 3 . 5 10 6 4 6 . 4 7 4 9 3 . 1 1 7 1 . 4 6 2 10 3 . 1 1 2 1 5 1 8 4 . 12 3 2 2 3 3 Fire 875 | . 94 22 . 28 88 30 46 12 . 8 45 10 23 17 5 24 33 2 . . 7 13 . 5 15 11 3 6 24 9 28 19 7 . 10 23 13 34 70 32 59 Melee 575 | . . . . . 4 4 20 8 10 34 43 5 47 14 15 23 12 16 4 . 9 9 . 4 60 6 9 13 40 2 15 18 41 30 10 38 12 . . . . Ram . | . . . . . . . . . . . . . . . . . . . . . . . . . . . . . . . . . . . . . . . . . . Kick . | . . . . . . . . . . . . . . . . . . . . . . . . . . . . . . . . . . . . . . . . . . Crush . | . . . . . . . . . . . . . . . . . . . . . . . . . . . . . . . . . . . . . . . . . . Escape Stasis 941 | . . . . . . . 42 . . . 92 . 121 . . . . . . . 72 . . . 88 . . . 166 . 78 . . 41 . . 52 89 . 72 28 Rewire 35 | . . . . . . . 3 2 . 1 1 . . . . 2 1 . . . . 1 . . 1 . . . . . . 1 2 8 2 . . . 3 3 4 Trap . | . . . . . . . . . . . . . . . . . . . . . . . . . . . . . . . . . . . . . . . . . . Miscellaneous 833 | . 26 8 . 23 48 27 9 17 . 5 26 10 38 11 12 2 33 9 . . 13 4 4 2 62 10 2 20 25 18 66 24 22 52 12 41 5 46 20 13 68 Route ------- -11/Scrapyard -10/Materials (discovered 3 exits: *Mat x2 / *Min) -10/Mines (discovered 3 exits: *Mat x2 / *Exi) -10/Exiles -9/Mines (discovered 2 exits: *Mat x2) -8/Materials (discovered 3 exits: *Fac x2 / *Sto) -8/Storage (discovered 3 exits: *Fac / Rec / Gar) -8/Garrison (discovered 3 exits: *Fac x3) -7/Factory (discovered 2 exits: *Low x2) -7/Waste -7/Factory (discovered 2 exits: *Low / Gar) -7/Garrison (discovered 3 exits: *Fac x3) -7/Factory (discovered 4 exits: *Fac x2 / *Low / Gar) -7/Garrison (discovered 3 exits: *Fac x3) -6/Factory (discovered 5 exits: Fac / Low x2 / *Ext x2) -6/Waste -6/Factory (discovered 4 exits: Low x2 / *Ext x2) -6/Extension (discovered 3 exits: *Fac x2 / *Cet) -6/Cetus -6/Archives (discovered 2 exits: *Fac / *Hub) -6/Hub_04(d) -6/Garrison (discovered 3 exits: *Fac x3) -5/Factory (discovered 2 exits: *Upp x2) -5/Waste -5/Factory (discovered 3 exits: *Upp x2 / Gar) -5/Garrison (discovered 3 exits: *Fac x3) -4/Factory -4/Waste -4/Factory (discovered 3 exits: *Upp / Gar / Gar) -4/Garrison (discovered 3 exits: *Fac x3) -4/Factory -4/Garrison (discovered 3 exits: *Res x3) -3/Research (discovered 3 exits: *Arm / *Qua x2) -3/Quarantine (discovered 2 exits: *Res / Gar) -3/Garrison (discovered 3 exits: *Res x3) -2/Research -2/Testing (discovered 2 exits: *Acc / *Sec) -2/Section 7 -2/Garrison (discovered 3 exits: *Acc x3) -1/Access (discovered 3 exits: [*Sur] / Gar / Gar) -1/Garrison (discovered 3 exits: *Acc x3) -1/Access History --------- Turn | Location | Event 1 | -11/Scrapyard | Upgraded with Propulsion slot (x1) 1 | -11/Scrapyard | Upgraded with Utility slot (x2) 1 | -11/Scrapyard | Upgraded with Weapon slot (x1) 12 | -11/Scrapyard | Discovered new exit (range 16) 58 | -11/Scrapyard | Entered Materials 215 | -10/Materials | Discovered new exit (range 15) 311 | -10/Materials | Build established: Mutant 428 | -10/Materials | Reached level 2 487 | -10/Materials | Discovered new exit (range 8) 507 | -10/Materials | Upgraded with Utility slot (x1) 1015 | -10/Materials | Identified exit to Mines 1089 | -10/Materials | Entered Mines 1089 | -10/Mines | Accompanied by 1 ally 1091 | -10/Mines | Reached level 3 1095 | -10/Mines | Upgraded with Utility slot (x1) 1104 | -10/Mines | Learned location of Storage (-8) 1144 | -10/Mines | Assisted by bots powering up and referring to "LRC-V3" 1218 | -10/Mines | Deemed a non-threat by the Exiles lab entrance 1220 | -10/Mines | Discovered new exit (range 5) 1326 | -10/Mines | Discovered new exit (range 5) 1350 | -10/Mines | Found a hidden stash of uninstalled traps 1358 | -10/Mines | Discovered new exit (range 12) 1443 | -10/Mines | Build established: Commander-Mutant 1502 | -10/Mines | Assisted by bots powering up and referring to "LRC-V3" 1534 | -10/Mines | Destroyed YI-UF0 1548 | -10/Mines | Found Prototype Storage 1555 | -10/Mines | Identified YI-UF0's Bottomless Matter Pit 1817 | -10/Mines | Met a Derelict who couldn't figure out how to use a Trap Extractor 1848 | -10/Mines | Build established: Scavenger-Mutant 1927 | -10/Mines | Identified exit to Materials 2104 | -10/Mines | Identified exit to Exiles 2111 | -10/Mines | Entered Exiles 2111 | -10/Exiles | Found Exiles lab abandoned 2111 | -10/Exiles | Accompanied by 4 allies 2507 | -10/Exiles | Discovered new exit (range 12) 2683 | -10/Exiles | Identified exit to Mines 2690 | -10/Exiles | Entered Mines 2690 | -9/Mines | Accompanied by 4 allies 2712 | -9/Mines | Met a Derelict bent on vengeance 2843 | -9/Mines | Assembled infested the area 2867 | -9/Mines | Learned Materials interactive machine intel 2975 | -9/Mines | Core integrity fell below 50% 3002 | -9/Mines | Destroyed 9 combat bots 3232 | -9/Mines | Discovered new exit (range 8) 3261 | -9/Mines | Identified exit to Materials 3421 | -9/Mines | Met a Derelict testing a Signal Generator 3512 | -9/Mines | Reached level 4 3630 | -9/Mines | Discovered exit to Materials (range 10) 3674 | -9/Mines | Entered Materials 3674 | -8/Materials | Accompanied by 1 ally 3675 | -8/Materials | Loaded intel: 19 interactive machine locations 3676 | -8/Materials | Reached level 5 3677 | -8/Materials | Upgraded with Utility slot (x1) 3779 | -8/Materials | Reached level 6 3807 | -8/Materials | Discovered new exit (range 16) 3832 | -8/Materials | Identified exit to Storage 4036 | -8/Materials | Central database locked down 4083 | -8/Materials | Discovered new exit (range 9) 4157 | -8/Materials | Reached level 7 4222 | -8/Materials | Discovered new exit (range 9) 4388 | -8/Materials | Identified exit to Factory 4529 | -8/Materials | Reached level 8 4545 | -8/Materials | Upgraded with Utility slot (x1) 4723 | -8/Materials | Entered Storage 4724 | -8/Storage | Build established: Hacker-Sprinter 4725 | -8/Storage | Reached level 9 4838 | -8/Storage | Found Prototype Launcher 4838 | -8/Storage | Identified Scatter Rocket Array 4859 | -8/Storage | Identified exit to Garrison 4950 | -8/Storage | Reached level 10 5057 | -8/Storage | Discovered new exit (range 14) 5068 | -8/Storage | Assisted by bots powering up and referring to "LRC-V3" 5144 | -8/Storage | Reached level 11 5150 | -8/Storage | Upgraded with Utility slot (x1) 5151 | -8/Storage | Identified exit to Recycling 5239 | -8/Storage | Entered Garrison 5239 | -8/Garrison | Accompanied by 7 allies 5241 | -8/Garrison | Installed Relay Interface Framework 5270 | -8/Garrison | Triggered checkpoint 5277 | -8/Garrison | Garrison Relay disabled 5352 | -8/Garrison | Triggered checkpoint 5358 | -8/Garrison | Triggered checkpoint 5362 | -8/Garrison | Reached level 12 5363 | -8/Garrison | Upgraded with Utility slot (x1) 5407 | -8/Garrison | Triggered checkpoint 5543 | -8/Garrison | Garrison Relay disabled 5557 | -8/Garrison | Discovered exit to Factory (range 14) 5586 | -8/Garrison | Garrison Relay disabled 5605 | -8/Garrison | Spotted B-75 Beast 5605 | -8/Garrison | Spotted B-75 Beast 5622 | -8/Garrison | Discovered exit to Factory (range 13) 5626 | -8/Garrison | Triggered checkpoint 5697 | -8/Garrison | Garrison Relay disabled 5754 | -8/Garrison | Triggered checkpoint 5771 | -8/Garrison | Triggered checkpoint 5774 | -8/Garrison | Core integrity fell below 50% 5797 | -8/Garrison | Core integrity fell below 20% 5808 | -8/Garrison | Reached level 13 5812 | -8/Garrison | Discovered exit to Factory (range 8) 5818 | -8/Garrison | Triggered checkpoint 5841 | -8/Garrison | Garrison Relay disabled 5884 | -8/Garrison | Entered Factory 5884 | -7/Factory | Accompanied by 3 allies 5885 | -7/Factory | Core integrity fell below 50% 5886 | -7/Factory | Reached level 14 5952 | -7/Factory | Discovered new exit (range 4) 5953 | -7/Factory | Identified exit to Lower Caves 6023 | -7/Factory | Hacking Suite fried by hacking feedback 6156 | -7/Factory | Discovered exit to Lower Caves (range 8) 6346 | -7/Factory | Manually triggered Chute Trap 6346 | -7/Factory | Sucked down chute 6346 | -7/Factory | Entered Waste 6354 | -7/Waste | Spotted C-40 Crusher 6354 | -7/Waste | Spotted C-40 Crusher 6354 | -7/Waste | Spotted C-40 Crusher 6361 | -7/Waste | EMP discharged 6361 | -7/Waste | System corruption reached 10% 6383 | -7/Waste | Spotted C-40 Crusher 6403 | -7/Waste | Spotted C-40 Crusher 6404 | -7/Waste | Spotted C-40 Crusher 6437 | -7/Waste | Discovered new exit (range 15) 6452 | -7/Waste | Identified exit to Factory 6452 | -7/Waste | Entered Factory 6485 | -7/Factory | Central database locked down 6503 | -7/Factory | Discovered exit to Lower Caves (range 9) 6632 | -7/Factory | Fabricated Imp. Hacking Suite (x1) 6677 | -7/Factory | Reached level 15 6687 | -7/Factory | Upgraded with Utility slot (x1) 6729 | -7/Factory | Fabricated Imp. Hacking Suite (x1) 6887 | -7/Factory | Fabricated Imp. Hacking Suite (x1) 7035 | -7/Factory | Fabricated Imp. Hacking Suite (x1) 7124 | -7/Factory | Identified exit to Garrison 7349 | -7/Factory | Local fabrication network quarantined 7476 | -7/Factory | Garrison activated, responded to threat 7495 | -7/Factory | Entered Garrison 7495 | -7/Garrison | Accompanied by 1 ally 7498 | -7/Garrison | Expanded RIF knowledge: Coupler Efficiency 7544 | -7/Garrison | Triggered checkpoint 7576 | -7/Garrison | Garrison Relay disabled 7612 | -7/Garrison | Reached level 16 7772 | -7/Garrison | Triggered checkpoint 7792 | -7/Garrison | Discovered new exit (range 10) 7795 | -7/Garrison | Identified exit to Factory 7852 | -7/Garrison | Triggered checkpoint 7858 | -7/Garrison | Core integrity fell below 20% 7927 | -7/Garrison | Garrison Relay disabled 8010 | -7/Garrison | Discovered exit to Factory (range 10) 8016 | -7/Garrison | Garrison Relay disabled 8104 | -7/Garrison | Triggered checkpoint 8131 | -7/Garrison | Discovered exit to Factory (range 10) 8164 | -7/Garrison | Triggered checkpoint 8188 | -7/Garrison | Garrison Relay disabled 8265 | -7/Garrison | Entered Factory 8265 | -7/Factory | Accompanied by 4 allies 8362 | -7/Factory | Discovered new exit (range 10) 8381 | -7/Factory | Identified exit to Factory 8487 | -7/Factory | Discovered exit to Lower Caves (range 31) 8616 | -7/Factory | Discovered exit to Factory (range 16) 8675 | -7/Factory | Fabricated System Restoration Module? 8700 | -7/Factory | Identified exit to Garrison 8710 | -7/Factory | Entered Garrison 8874 | -7/Garrison | Triggered checkpoint 8994 | -7/Garrison | Garrison Relay disabled 9024 | -7/Garrison | Triggered checkpoint 9201 | -7/Garrison | Garrison Relay disabled 9201 | -7/Garrison | Reached level 17 9208 | -7/Garrison | Triggered checkpoint 9228 | -7/Garrison | Discovered exit to Factory (range 13) 9237 | -7/Garrison | Expanded RIF knowledge: Coupler Efficiency 9332 | -7/Garrison | Triggered checkpoint 9367 | -7/Garrison | Spotted B-75 Beast 9368 | -7/Garrison | Spotted B-75 Beast 9380 | -7/Garrison | Assimilated Beast 4a with formatsys_high 9406 | -7/Garrison | Assimilated Beast 4b with formatsys_high 9507 | -7/Garrison | Discovered exit to Factory (range 15) 9594 | -7/Garrison | Triggered checkpoint 9607 | -7/Garrison | Triggered checkpoint 9638 | -7/Garrison | Triggered checkpoint 9663 | -7/Garrison | Garrison Relay disabled 9682 | -7/Garrison | Discovered exit to Factory (range 10) 9735 | -7/Garrison | Entered Factory 9735 | -6/Factory | Accompanied by 5 allies 9737 | -6/Factory | Reached level 18 9985 | -6/Factory | Discovered new exit (range 47) 10069 | -6/Factory | Fabricated Nuclear Pulse Thruster (x2) 10075 | -6/Factory | Identified exit to Lower Caves 10075 | -6/Factory | Identified exit to Extension 10251 | -6/Factory | Fabricated Exp. Signal Interpreter (x1) 10300 | -6/Factory | Fabricated Imp. Armor Integrity Analyzer (x1) 10419 | -6/Factory | Fabricated Exp. Sensor Array (x1) 10427 | -6/Factory | Local fabrication network quarantined 10434 | -6/Factory | Spotted B-75 Beast 10475 | -6/Factory | Central database locked down 10493 | -6/Factory | Discovered new exit (range 59) 10535 | -6/Factory | Reached level 19 10547 | -6/Factory | Upgraded with Utility slot (x1) 10595 | -6/Factory | Manually triggered Chute Trap 10595 | -6/Factory | Sucked down chute 10595 | -6/Factory | Entered Waste 10604 | -6/Waste | Spotted C-40 Crusher 10605 | -6/Waste | Spotted C-40 Crusher 10606 | -6/Waste | Spotted C-40 Crusher 10610 | -6/Waste | EMP discharged 10620 | -6/Waste | Spotted C-40 Crusher 10630 | -6/Waste | Destroyed C-40 Crusher 10633 | -6/Waste | Destroyed C-40 Crusher 10675 | -6/Waste | Destroyed C-40 Crusher 10691 | -6/Waste | Discovered new exit (range 11) 10693 | -6/Waste | Identified exit to Factory 10703 | -6/Waste | Entered Factory 10748 | -6/Factory | Identified exit to Garrison 10915 | -6/Factory | Discovered exit to Extension (range 14) 11043 | -6/Factory | Fabricated Imp. Hacking Suite (x1) 11053 | -6/Factory | First assault squad dispatched 11461 | -6/Factory | Entered Extension 11461 | -6/Extension | Accompanied by 2 allies 11500 | -6/Extension | Rescued a captive Derelict 11846 | -6/Extension | Spotted B-75 Beast 11862 | -6/Extension | Reached level 20 11862 | -6/Extension | Allies destroyed B-75 Beast 11882 | -6/Extension | Spotted B-75 Beast 11892 | -6/Extension | Allies destroyed B-75 Beast 11907 | -6/Extension | Discovered new exit (range 3) 11920 | -6/Extension | Rescued a captive Derelict 11924 | -6/Extension | Central database locked down 11961 | -6/Extension | Rescued a captive Derelict 11961 | -6/Extension | Rescued a captive Derelict 12076 | -6/Extension | Rescued A7 12095 | -6/Extension | Discovered new exit (range 10) 12096 | -6/Extension | Discovered new exit (range 6) 12123 | -6/Extension | Disrupted transfer network 12125 | -6/Extension | Identified exit to Cetus 12154 | -6/Extension | Entered Cetus 12154 | -6/Cetus | Accompanied by 18 allies 12159 | -6/Cetus | Acquired a Cetus Manufacturing Module code from A7 12159 | -6/Cetus | Spotted Cetus Guard 12160 | -6/Cetus | Spotted Cetus Guard 12160 | -6/Cetus | Spotted Cetus Guard 12168 | -6/Cetus | Spotted Cetus Guard 12171 | -6/Cetus | Allies destroyed Cetus Guard 12173 | -6/Cetus | Allies destroyed Cetus Guard 12178 | -6/Cetus | Allies destroyed Cetus Guard 12181 | -6/Cetus | Allies destroyed Cetus Guard 12203 | -6/Cetus | Started Cetus Manufacturing Module 12228 | -6/Cetus | Manufactured an Enhanced Grunt 12253 | -6/Cetus | Manufactured an Enhanced Grunt 12254 | -6/Cetus | Build established: Commander-Sprinter 12278 | -6/Cetus | Manufactured an Enhanced Grunt 12303 | -6/Cetus | Manufactured an Enhanced Grunt 12328 | -6/Cetus | Manufactured an Enhanced Grunt 12380 | -6/Cetus | Discovered new exit (range 16) 12389 | -6/Cetus | Identified exit to Archives 12473 | -6/Cetus | Destroyed A7 12474 | -6/Cetus | Extracted ID and sensor layout for unrecognized location from A7's data core 12540 | -6/Cetus | Reached level 21 12542 | -6/Cetus | Upgraded with Utility slot (x1) 12579 | -6/Cetus | Entered Archives 12579 | -6/Archives | Accompanied by 13 allies 12603 | -6/Archives | Discovered new exit (range 15) 12616 | -6/Archives | Discovered new exit (range 16) 12628 | -6/Archives | Identified exit to Hub_04(d) 12665 | -6/Archives | Entered Hub_04(d) 12665 | -6/Hub_04(d) | Accompanied by 11 allies 12672 | -6/Hub_04(d) | Identified exit to Garrison 12689 | -6/Hub_04(d) | Entered Garrison 12689 | -6/Garrison | Accompanied by 10 allies 12715 | -6/Garrison | Garrison Relay disabled 12728 | -6/Garrison | Triggered checkpoint 12784 | -6/Garrison | Triggered checkpoint 12798 | -6/Garrison | Triggered checkpoint 12810 | -6/Garrison | Triggered checkpoint 12850 | -6/Garrison | Garrison Relay disabled 12854 | -6/Garrison | Triggered checkpoint 12865 | -6/Garrison | Discovered new exit (range 14) 12870 | -6/Garrison | Identified exit to Factory 12872 | -6/Garrison | Expanded RIF knowledge: Autoassimilate 12920 | -6/Garrison | Triggered checkpoint 12934 | -6/Garrison | Discovered exit to Factory (range 9) 12962 | -6/Garrison | Garrison Relay disabled 12962 | -6/Garrison | Reached level 22 13010 | -6/Garrison | Triggered checkpoint 13011 | -6/Garrison | Garrison Relay disabled 13096 | -6/Garrison | Discovered exit to Factory (range 14) 13130 | -6/Garrison | Entered Factory 13130 | -5/Factory | Accompanied by 11 allies 13335 | -5/Factory | Fabricated Cld. Nuclear Pulse Thruster (x1) 13337 | -5/Factory | Imp. Hacking Suite fried by hacking feedback 13421 | -5/Factory | Fabricated Cld. Nuclear Pulse Thruster (x1) 13424 | -5/Factory | Discovered new exit (range 14) 13430 | -5/Factory | Identified exit to Upper Caves 13460 | -5/Factory | Reached level 23 13730 | -5/Factory | First assault squad dispatched 13795 | -5/Factory | Manually triggered Chute Trap 13795 | -5/Factory | Sucked down chute 13795 | -5/Factory | Entered Waste 13796 | -5/Waste | Met a frightened Derelict 13813 | -5/Waste | Warlord forces began an assault 13814 | -5/Waste | Spotted C-40 Crusher 13825 | -5/Waste | Allies destroyed C-40 Crusher 13825 | -5/Waste | Spotted C-40 Crusher 13827 | -5/Waste | Allies destroyed C-40 Crusher 13833 | -5/Waste | Spotted C-40 Crusher 13842 | -5/Waste | Spotted C-40 Crusher 13842 | -5/Waste | Allies destroyed C-40 Crusher 13855 | -5/Waste | Spotted C-40 Crusher 13857 | -5/Waste | Allies destroyed C-40 Crusher 13867 | -5/Waste | Spotted C-40 Crusher 13870 | -5/Waste | Allies destroyed C-40 Crusher 13891 | -5/Waste | Discovered new exit (range 12) 13895 | -5/Waste | Identified exit to Factory 13923 | -5/Waste | Entered Factory 13923 | -5/Factory | Accompanied by 17 allies 14055 | -5/Factory | Build established: Bothacker-Sprinter 14140 | -5/Factory | Fabricated Exp. Cesium-ion Thruster (x1) 14309 | -5/Factory | Fabricated Exp. Cesium-ion Thruster (x1) 14314 | -5/Factory | Local fabrication network quarantined 14329 | -5/Factory | Discovered exit to Upper Caves (range 125) 14385 | -5/Factory | Reached level 24 14481 | -5/Factory | Found Prototype Launcher 14481 | -5/Factory | Identified Mni. Smartbomb Launcher 14494 | -5/Factory | Identified exit to Garrison 14532 | -5/Factory | Entered Garrison 14532 | -5/Garrison | Accompanied by 8 allies 14544 | -5/Garrison | Triggered checkpoint 14563 | -5/Garrison | Garrison Relay disabled 14596 | -5/Garrison | Spotted B-75 Beast 14628 | -5/Garrison | Triggered checkpoint 14628 | -5/Garrison | Triggered checkpoint 14632 | -5/Garrison | Triggered checkpoint 14687 | -5/Garrison | Core integrity fell below 50% 14760 | -5/Garrison | Destroyed B-75 Beast 14772 | -5/Garrison | Triggered checkpoint 14882 | -5/Garrison | Discovered new exit (range 11) 14884 | -5/Garrison | Identified exit to Factory 14890 | -5/Garrison | Triggered checkpoint 14892 | -5/Garrison | Garrison Relay disabled 14980 | -5/Garrison | Garrison Relay disabled 14990 | -5/Garrison | Triggered checkpoint 14996 | -5/Garrison | Discovered exit to Factory (range 15) 15021 | -5/Garrison | Discovered exit to Factory (range 8) 15024 | -5/Garrison | Expanded RIF knowledge: Patrol Navigation 15032 | -5/Garrison | Triggered checkpoint 15158 | -5/Garrison | Entered Factory 15158 | -4/Factory | Accompanied by 2 allies 15160 | -4/Factory | Reached level 25 15161 | -4/Factory | Upgraded with Utility slot (x1) 15277 | -4/Factory | Build established: Botlord-Sprinter 15304 | -4/Factory | Manually triggered Chute Trap 15304 | -4/Factory | Sucked down chute 15304 | -4/Factory | Entered Waste 15305 | -4/Waste | Met a frightened Derelict 15309 | -4/Waste | Spotted C-40 Crusher 15310 | -4/Waste | Spotted C-40 Crusher 15314 | -4/Waste | Spotted C-40 Crusher 15315 | -4/Waste | Spotted C-40 Crusher 15315 | -4/Waste | Spotted C-40 Crusher 15316 | -4/Waste | Discovered new exit (range 12) 15316 | -4/Waste | Spotted C-40 Crusher 15350 | -4/Waste | 3 allies followed down the chute 15376 | -4/Waste | Allies destroyed C-40 Crusher 15380 | -4/Waste | Destroyed C-40 Crusher 15393 | -4/Waste | Allies destroyed C-40 Crusher 15401 | -4/Waste | Allies destroyed C-40 Crusher 15436 | -4/Waste | Warlord forces began an assault 15461 | -4/Waste | Identified exit to Factory 15493 | -4/Waste | Entered Factory 15493 | -4/Factory | Accompanied by 18 allies 15513 | -4/Factory | Discovered new exit (range 11) 15515 | -4/Factory | Identified exit to Upper Caves 15518 | -4/Factory | Identified exit to Garrison 15610 | -4/Factory | Identified exit to Garrison 15677 | -4/Factory | Reached level 26 15756 | -4/Factory | Garrison activated, responded to threat 15861 | -4/Factory | Entered Garrison 15933 | -4/Garrison | Garrison Relay disabled 15985 | -4/Garrison | Spotted B-86 Titan 16021 | -4/Garrison | Triggered checkpoint 16041 | -4/Garrison | Triggered checkpoint 16058 | -4/Garrison | Core integrity fell below 50% 16059 | -4/Garrison | Triggered checkpoint 16061 | -4/Garrison | Destroyed B-86 Titan 16082 | -4/Garrison | Destroyed 12 combat bots 16090 | -4/Garrison | Triggered checkpoint 16108 | -4/Garrison | Garrison Relay disabled 16118 | -4/Garrison | Discovered new exit (range 14) 16208 | -4/Garrison | Triggered checkpoint 16291 | -4/Garrison | Garrison Relay disabled 16321 | -4/Garrison | Discovered new exit (range 10) 16324 | -4/Garrison | Identified exit to Factory 16326 | -4/Garrison | Expanded RIF knowledge: Program Shield 16343 | -4/Garrison | Discovered exit to Factory (range 12) 16346 | -4/Garrison | Triggered checkpoint 16357 | -4/Garrison | Core integrity fell below 20% 16392 | -4/Garrison | Triggered checkpoint 16403 | -4/Garrison | Entered Factory 16439 | -4/Factory | Reached level 27 16485 | -4/Factory | Identified exit to Garrison 16530 | -4/Factory | Garrison activated, responded to threat 16561 | -4/Factory | Entered Garrison 16561 | -4/Garrison | Accompanied by 2 allies 16566 | -4/Garrison | Triggered checkpoint 16588 | -4/Garrison | Triggered checkpoint 16640 | -4/Garrison | Garrison Relay disabled 16702 | -4/Garrison | Triggered checkpoint 16714 | -4/Garrison | Triggered checkpoint 16717 | -4/Garrison | Triggered checkpoint 16794 | -4/Garrison | Triggered checkpoint 16832 | -4/Garrison | Garrison Relay disabled 16851 | -4/Garrison | Discovered new exit (range 12) 16854 | -4/Garrison | Identified exit to Research 16882 | -4/Garrison | Triggered checkpoint 16910 | -4/Garrison | Triggered checkpoint 16954 | -4/Garrison | Garrison Relay disabled 16965 | -4/Garrison | Discovered exit to Research (range 14) 16985 | -4/Garrison | Discovered exit to Research (range 9) 16989 | -4/Garrison | Expanded RIF knowledge: Autooverride 16998 | -4/Garrison | Triggered checkpoint 17026 | -4/Garrison | Garrison Relay disabled 17083 | -4/Garrison | Entered Research 17083 | -3/Research | Accompanied by 8 allies 17085 | -3/Research | Reached level 28 17085 | -3/Research | Upgraded with Utility slot (x1) 17200 | -3/Research | P-80 Master assimilated allied Warrior 7c 17221 | -3/Research | Discovered new exit (range 61) 17304 | -3/Research | Identified exit to Armory 17304 | -3/Research | Reached level 29 17333 | -3/Research | First assault squad dispatched 17342 | -3/Research | Identified exit to Quarantine 17514 | -3/Research | Entered Quarantine 17514 | -3/Quarantine | Accompanied by 3 allies 17519 | -3/Quarantine | Identified exit to Garrison 17536 | -3/Quarantine | Found Alien Artifact 17633 | -3/Quarantine | Cryocooling Duct disabled 17648 | -3/Quarantine | Ambient heat levels rising (+20) 17648 | -3/Quarantine | Non-combat units ordered to evacuate 17706 | -3/Quarantine | Identified Core Reset Matrix 17736 | -3/Quarantine | Identified exit to Research 17911 | -3/Quarantine | Reached level 30 18033 | -3/Quarantine | Found Enh. Force Lance 18134 | -3/Quarantine | Found Alien Artifact 18359 | -3/Quarantine | P-80 Master assimilated allied Archangel 8a 18366 | -3/Quarantine | Entered Garrison 18374 | -3/Garrison | Triggered checkpoint 18379 | -3/Garrison | Garrison Relay disabled 18435 | -3/Garrison | Spotted B-86 Titan 18440 | -3/Garrison | Triggered checkpoint 18441 | -3/Garrison | Triggered checkpoint 18442 | -3/Garrison | Triggered checkpoint 18449 | -3/Garrison | Allies destroyed B-86 Titan 18451 | -3/Garrison | Core integrity fell below 50% 18456 | -3/Garrison | Triggered checkpoint 18553 | -3/Garrison | Discovered exit to Research (range 10) 18560 | -3/Garrison | Triggered checkpoint 18587 | -3/Garrison | Garrison Relay disabled 18588 | -3/Garrison | Triggered checkpoint 18732 | -3/Garrison | Triggered checkpoint 18759 | -3/Garrison | Garrison Relay disabled 18777 | -3/Garrison | Discovered exit to Research (range 8) 18780 | -3/Garrison | Expanded RIF knowledge: Crosswire 18823 | -3/Garrison | Discovered exit to Research (range 10) 18850 | -3/Garrison | Triggered checkpoint 18857 | -3/Garrison | Garrison Relay disabled 18976 | -3/Garrison | Entered Research 18976 | -2/Research | Accompanied by 10 allies 18978 | -2/Research | Reached level 31 19075 | -2/Research | Reached level 32 19075 | -2/Research | Upgraded with Utility slot (x1) 19111 | -2/Research | Discovered new exit (range 14) 19136 | -2/Research | Core integrity fell below 50% 19138 | -2/Research | Identified exit to Testing 19141 | -2/Research | Entered Testing 19161 | -2/Testing | Spotted PY-PH6GFXKOST 19276 | -2/Testing | Found Prototype Energy Cannon 19276 | -2/Testing | Identified Null Cannon 19303 | -2/Testing | Identified Subatomic Replicator 19311 | -2/Testing | Found Prototype Hackware 19484 | -2/Testing | Spotted I1-DR7(K) 19484 | -2/Testing | Spotted MP-WT7(K) 19484 | -2/Testing | Spotted MZ-YQ5(K) 19487 | -2/Testing | Rewired I1-DR7(K) 19488 | -2/Testing | Rewired MP-WT7(K) 19489 | -2/Testing | Rewired MZ-YQ5(K) 19496 | -2/Testing | Spotted Alpha 7 19501 | -2/Testing | Scanned by Researcher 19506 | -2/Testing | Allies destroyed Alpha 7 19517 | -2/Testing | Found Prototype Processor 19517 | -2/Testing | Identified Exp. Targeting Computer 19676 | -2/Testing | Protovariant out of control (PY-PH6GFXKOST) 19676 | -2/Testing | Unleashed a protovariant (PY-PH6GFXKOST) 19710 | -2/Testing | Discovered new exit (range 15) 19714 | -2/Testing | Identified Exp. System Shield 19734 | -2/Testing | Spotted Fortress 19749 | -2/Testing | Discovered new exit (range 6) 19750 | -2/Testing | Identified exit to Section 7 19750 | -2/Testing | Entered Section 7 19752 | -2/Section 7 | Reached level 33 19864 | -2/Section 7 | Found Alien Artifact 19864 | -2/Section 7 | Identified Integrity Redistributor 19864 | -2/Section 7 | Used Integrity Redistributor, redistributed integrity to core (+29) 19895 | -2/Section 7 | Spotted S7 Guard 19900 | -2/Section 7 | Found Alien Artifact 19900 | -2/Section 7 | Identified Core Regenerator 19900 | -2/Section 7 | Used Core Regenerator, restored core integrity (+275) 19977 | -2/Section 7 | Garrison activated, responded to threat 19993 | -2/Section 7 | Identified exit to Garrison 20000 | -2/Section 7 | Spotted S7 Guard 20005 | -2/Section 7 | Found Alien Artifact 20005 | -2/Section 7 | Identified Integrated Singularity Reactor 20005 | -2/Section 7 | Installed Integrated Singularity Reactor, increased core energy generation (+2%) 20048 | -2/Section 7 | Entered Garrison 20064 | -2/Garrison | Garrison Relay disabled 20077 | -2/Garrison | Lost 5 parts (1p2u2w) 20079 | -2/Garrison | Triggered checkpoint 20115 | -2/Garrison | Triggered checkpoint 20116 | -2/Garrison | Spotted B-90 Cyclops 20132 | -2/Garrison | Triggered checkpoint 20134 | -2/Garrison | Triggered checkpoint 20154 | -2/Garrison | Allies destroyed B-90 Cyclops 20197 | -2/Garrison | Triggered checkpoint 20239 | -2/Garrison | Discovered new exit (range 9) 20252 | -2/Garrison | Triggered checkpoint 20260 | -2/Garrison | Garrison Relay disabled 20351 | -2/Garrison | Discovered new exit (range 10) 20358 | -2/Garrison | Triggered checkpoint 20358 | -2/Garrison | Triggered checkpoint 20460 | -2/Garrison | Triggered checkpoint 20463 | -2/Garrison | Garrison Relay disabled 20481 | -2/Garrison | Discovered new exit (range 10) 20483 | -2/Garrison | Identified exit to Access 20485 | -2/Garrison | Expanded RIF knowledge: Alert ID Control 20485 | -2/Garrison | Reached level 34 20563 | -2/Garrison | Entered Access 20563 | -1/Access | Accompanied by 18 allies 20816 | -1/Access | Identified exit to Garrison 20907 | -1/Access | Fabricated C-55 Analyst? 21063 | -1/Access | First assault squad dispatched 21074 | -1/Access | Garrison activated, responded to threat 21153 | -1/Access | Spotted B-99 Colossus 21335 | -1/Access | Discovered new exit (range 6) 21578 | -1/Access | Identified exit to Garrison 21653 | -1/Access | Entered Garrison 21653 | -1/Garrison | Accompanied by 16 allies 21655 | -1/Garrison | Reached level 35 21656 | -1/Garrison | Upgraded with Utility slot (x1) 21712 | -1/Garrison | Triggered checkpoint 21729 | -1/Garrison | Garrison Relay disabled 21754 | -1/Garrison | Triggered checkpoint 21754 | -1/Garrison | Triggered checkpoint 21754 | -1/Garrison | Spotted B-99 Colossus 21759 | -1/Garrison | Triggered checkpoint 21770 | -1/Garrison | Triggered checkpoint 21791 | -1/Garrison | Allies destroyed B-99 Colossus 21842 | -1/Garrison | Triggered checkpoint 21861 | -1/Garrison | Garrison Relay disabled 21871 | -1/Garrison | Triggered checkpoint 21886 | -1/Garrison | Discovered new exit (range 13) 21890 | -1/Garrison | Identified exit to Access 21892 | -1/Garrison | Expanded RIF knowledge: Autooverride 21922 | -1/Garrison | Discovered exit to Access (range 8) 21934 | -1/Garrison | Triggered checkpoint 21940 | -1/Garrison | Garrison Relay disabled 21984 | -1/Garrison | Triggered checkpoint 22004 | -1/Garrison | Garrison Relay disabled 22016 | -1/Garrison | Discovered exit to Access (range 10) 22074 | -1/Garrison | Entered Access 22074 | -1/Access | Accompanied by 16 allies 22077 | -1/Access | Maximum security lockdown engaged 22125 | -1/Access | Garrison activated, responded to threat 22154 | -1/Access | Crushed by falling debris 22293 | -1/Access | Spotted Striker 22410 | -1/Access | Core integrity fell below 50% 22439 | -1/Access | Build established: Botlord-Scout 22474 | -1/Access | Spotted Executioner 22474 | -1/Access | Spotted Executioner 22475 | -1/Access | Spotted Investigator 22476 | -1/Access | Spotted Striker 22477 | -1/Access | System corruption reached 10% 22482 | -1/Access | Core integrity fell below 20% 22484 | -1/Access | Spotted Executioner 22557 | -1/Access | Spotted B-99 Colossus 22558 | -1/Access | Destroyed by H-88 Terminator with KE Penetrator Last Messages --------------- 22536_ RIF automatically installing new Plague 10o system data, ETC: 6. 22536_ RIF automatically rewrites S-43 Plague IFF filter. 22537_ Reactivated Plague 10o. 22538_ Protomatter-15 decays. 22541_ RIF automatically rewrites Y-72 Warden IFF filter. 22541_ S-43 Plague suffers critical hit. 22543_ System corrupted: Component data lost. 22552_ Detecting nearby Garrison Access. 22554_ RIF automatically installing new Warden 10g system data, ETC: 6. 22554_ RIF automatically installing new Warden 10h system data, ETC: 6. 22554_ Warden 10h suffers critical hit. 22554_ Warden 10h destroyed. 22555_ Reactivated Warden 10g. 22558_ Knocked back. 22558_ Penetrated by Slug. 22558_ Slug penetrates Wall. 22558_ Penetrated by Slug. 22558_ Slug penetrates Garrison Access. 22558_ Slug penetrates Wall. 22558_ Penetrated by Slug. Map ----- +----------------------------------------------------+ | ?????????????????????????# ######## # | | ????#######??????????????# ## # ""# | | ????# #?????????????## ## # ""# | | ????# ############### ] # # ""# | | ????+ + !# T# | | ????# #### ##### # # ""# | | ????# #??# #???## ## # ""# | | ????# " #??# #????# ## # ""# | | ????# """ #??# #????#C######## # | | ????# """ #??# #????# #??????# # | | ????# " #??# #????# #??#######"###+### | | ??### ####+######+##?# | | ??# + #?# | | ??# # #?# | | ??# #########+## " #?# | | ??# #????# # """ #?# w | | ?## ##???# # =%!G #?# | | ## #???# # """ #?# | | #???# [ # " #?#### ##### #######/# | | ## #???# # #????# ????# ## | | ?##+######!= # #????# ????# ## | | ## ##= # = #????#?????# ## | | # ## # = #??????????# ## | | # ## # #??????????# ?# | | #= ################+####??????????# ?# | | # #?# @ #?????????## ?# | | # ! #?# +?????????# # | | ########?# #?????????# Y R | | *#????????# !! #?????????# # | | #????????# !! #?????????## ##! | | ##????????# !! #??????????# ?# | | ??????????# #??????????#??######## | | ??????????# ????????????????????? | | ????????h?# ????????????????????? | | ??????????# k h ???????????????????? | | ??????????+ "##BB#####???????????????????? | | ??????????# ""?#BB????????????????????????? | | ??????????# ""?###????????????????????????? | | ??????????# ??????????????????????????????? | | ??????????? ???????????????????????????????? | | ????????????? ????????????????????????????????? | | ?????????????????????????????????????????????????? | | ?????????????????????????????????????????????????? | | ?????????????????????????????????????????????????? | | ?????????????????????????????????????????????????? | | ?????????????????????????????????????????????????? | | ?????????????????????????????????????????????????? | | ?????????????????????????????????????????????????? | | ?????????????????????????????????????????????????? | | ?????????????????????????????????????????????????? | +----------------------------------------------------+ Best States ------------- Heat Dissipation 91 Coolant Potential 65 Energy Generation 46 Energy Capacity 1110 Matter Stores 300 Matter Capacity 1800 Sight Range 20 Robot Scan Range 30 Terrain Scan Density 10 Armor Coverage 450 Evasion (%) 65 Melee Accuracy 14 Armor Integrity Analysis 50 Offensive Hacking 60 Defensive Hacking 12 Item Schematics ----------------- Cmb. Airjet | -8/Materials | Scanalyzed Hacking Suite | -8/Materials | Scanalyzed Plasma Cutter | -8/Materials | Scanalyzed Adv. Sensor Array | -8/Materials | Hacked Shock Bomb Launcher | -8/Storage | Hacked Fission Core | -8/Storage | Hacked Imp. Hacking Suite | -7/Factory | Hacked Lrn. Sensor Array | -7/Factory | Hacked Imp. System Shield | -7/Factory | Hacked Imp. EM Pulse Cannon | -7/Factory | Hacked Neutrino Core | -7/Factory | Hacked Adv. Drone Bay | -7/Factory | Hacked Imp. Particle Charger | -7/Factory | Hacked System Restoration Module | -7/Factory | Hacked Lightning Gun | -7/Factory | Hacked Imp. Armor Integrity Analyzer | -6/Factory | Hacked Nuclear Pulse Thruster | -6/Factory | Hacked Exp. Signal Interpreter | -6/Factory | Hacked Exp. Sensor Array | -6/Factory | Hacked Hyp. Coil Gun | -6/Factory | Hacked Cld. Plasma Cannon | -6/Factory | Hacked Adv. Hacking Suite | -6/Factory | Hacked Cld. Nuclear Pulse Thruster | -6/Extension | Hacked Adv. Datajack | -6/Extension | Hacked Force Field | -6/Extension | Hacked Enh. Gauss Cannon | -6/Extension | Hacked Imp. Weapon Cycler | -6/Extension | Hacked Exp. Cesium-ion Thruster | -5/Factory | Hacked Imp. Quantum Reactor | -3/Quarantine | Hacked Imp. Diametric Drive | -2/Testing | Scanalyzed Robot Schematics ------------------ Y-54 Guardian | -7/Factory | Hacked H-66 Slayer | -6/Extension | Hacked H-77 Assassin | -5/Factory | Hacked Fabricated ------------ Imp. Hacking Suite | x1 | -7/Factory Imp. Hacking Suite | x1 | -7/Factory Imp. Hacking Suite | x1 | -7/Factory Imp. Hacking Suite | x1 | -7/Factory System Restoration Module | x2 | -7/Factory Nuclear Pulse Thruster | x2 | -6/Factory Exp. Signal Interpreter | x1 | -6/Factory Imp. Armor Integrity Analyzer | x1 | -6/Factory Exp. Sensor Array | x1 | -6/Factory Imp. Hacking Suite | x1 | -6/Factory Cld. Nuclear Pulse Thruster | x1 | -5/Factory Cld. Nuclear Pulse Thruster | x1 | -5/Factory Exp. Cesium-ion Thruster | x1 | -5/Factory Exp. Cesium-ion Thruster | x1 | -5/Factory C-55 Analyst | x1 | -1/Access | Preloaded Alien Tech Used ----------------- Integrity Redistributor Core Regenerator Integrated Singularity Reactor Achievements -------------- Infiltrator Challenges ------------ None RPGLIKE | -11 -10 -10 -10 -9 -8 -8 -8 -7 -7 -7 -7 -7 -7 -6 -6 -6 -6 -6 -6 -6 -6 -5 -5 -5 -5 -4 -4 -4 -4 -4 -4 -3 -3 -3 -2 -2 -2 -2 -1 -1 -1 --------- Run | Scr Mat Min Exi Min Mat Sto Gar Fac Was Fac Gar Fac Gar Fac Was Fac Ext Cet Arc Hub Gar Fac Was Fac Gar Fac Was Fac Gar Fac Gar Res Qua Gar Res Tes Sec Gar Acc Gar Acc Levels Raised 34 | . 1 1 . 1 4 3 2 1 . 1 1 . 1 2 . . 1 1 . . 1 1 . 1 . 1 . 1 . 1 . 2 1 . 2 . 1 1 . 1 . XP Earned 55104 | 3000 2535 500 200 2011 6063 4038 2803 2421 139 1203 1474 294 853 2706 70 531 1267 957 246 167 1140 2059 58 974 664 1200 80 1051 1024 498 742 2451 1341 1072 2113 964 821 770 1304 566 734 XP Spent 53945 | 2970 1100 1900 . 750 6500 3550 4160 . . 2900 420 . 1750 3200 . . . 3500 . . . . 2000 . . 3800 . . 220 400 . 5000 600 . 4400 . . . . 4700 125 Upgrades 47 | 8 1 2 . 1 6 2 4 . . 1 6 . 1 1 . . . 1 . . . . 1 . . 1 . . 2 2 . 3 1 . 1 . . . . 1 1 Propulsion Slot 1 | 1 . . . . . . . . . . . . . . . . . . . . . . . . . . . . . . . . . . . . . . . . . Utility Slot 15 | 2 1 1 . . 2 1 1 . . 1 . . . 1 . . . 1 . . . . . . . 1 . . . . . 1 . . 1 . . . . 1 . Weapon Slot 1 | 1 . . . . . . . . . . . . . . . . . . . . . . . . . . . . . . . . . . . . . . . . . Core Integrity 11 | . . . . . . . 2 . . . 6 . . . . . . . . . . . . . . . . . 2 . . . . . . . . . . . 1 Heat Dissipation 2 | 2 . . . . . . . . . . . . . . . . . . . . . . . . . . . . . . . . . . . . . . . . . Energy Generation 1 | 1 . . . . . . . . . . . . . . . . . . . . . . . . . . . . . . . . . . . . . . . . . Mass Support 3 | . . . . . 3 . . . . . . . . . . . . . . . . . . . . . . . . . . . . . . . . . . . . Inventory Capacity 8 | 1 . 1 . 1 1 1 1 . . . . . 1 . . . . . . . . . 1 . . . . . . . . . . . . . . . . . . Hack Attack % 3 | . . . . . . . . . . . . . . . . . . . . . . . . . . . . . . 1 . 1 1 . . . . . . . . Hack Defense % 2 | . . . . . . . . . . . . . . . . . . . . . . . . . . . . . . 1 . 1 . . . . . . . . . Protomatter Created 3007 | . 209 93 . 90 318 367 78 . . 37 112 39 278 . 85 . . 73 . . . . . . 289 . . 44 126 43 49 119 376 . . . . . 105 . 77 Integrity Restored 17311 | . 542 149 . 495 930 458 172 381 . 111 585 225 832 210 253 33 652 179 . . 222 60 70 15 1340 194 48 408 573 402 1357 407 438 1099 222 900 120 997 433 252 1547 Core 13952 | . 435 11 . 363 664 198 158 381 . 111 585 225 765 76 252 33 371 12 . . 138 47 45 12 968 26 48 309 573 402 1057 338 342 895 208 900 120 808 393 182 1501 Parts 3359 | . 107 138 . 132 266 260 14 . . . . . 67 134 1 . 281 167 . . 84 13 25 3 372 168 . 99 . . 300 69 96 204 14 . . 189 40 70 46 Protomatter Decayed 9212 | . . 40 . 125 63 375 122 39 . 74 1 . . 143 . 129 311 331 114 . 509 345 169 267 171 60 . 630 . . 120 375 880 166 470 263 111 19 799 497 1494 Game ------ Seed PhaseReflectiveBarrier Manual? 0 Play Time 05:49:19 Cumulative 1053.1 hours Start 2020.06.27 @ 13:43:01 End 2020.06.27 @ 22:15:41 Sessions 1 Manual Loads 0 Difficulty Rogue Special Mode Winter2019/RPGLIKE Game No. 341 Rogue 341 Adventurer 0 Explorer 0 Win Type - Total 77 Types 14/8/35/5/1/2/12 Lore% 97 Gallery% 97 Achievement% 85 Wizard Run 0 Options --------- ASCII 0 Keyboard 0 Movement Numpad Keybinds 0 Fullscreen 1 Font 18/SmallcapsGlow Map View 76x50 Tactical HUD 1 Map Filters NONE Filters NONE Steam 1 RUN: 7c0c42ad-3134-48f2-84f6-4d27ad28d32a